DEPARTMENT FAMILY,ENTITY,DATE,EXPENSE_AREA,EXPENSE_TYPE,SUPPLIER,TRANSACTION_NUMBER,AMOUNT
Ministry of Justice,MoJ HQ,01-Jun-10,ZZ900-MoJ HQ,223000-Other Expenditure,CRAGG ROSS DAWSON,1021221,"66,863.38"
Ministry of Justice,MoJ HQ,01-Jun-10,ZZ900-MoJ HQ,262000-SCA Costs,HP ENTERPRISE SERVICES UK LTD,1021229,"34,427.50"
Ministry of Justice,Tribunals,01-Jun-10,TR120-Corporate,212001-Agency staff,KELLY SERVICES (UK) LTD,1031604,"25,185.89"
Ministry of Justice,Tribunals,01-Jun-10,TR120-Corporate,212001-Agency staff,KELLY SERVICES (UK) LTD,1031604,"25,496.81"
Ministry of Justice,HMCS,02-Jun-10,AA499-HMCS Change Programme,265000-IT & Telecommunications,LOGICA UK LTD,1231904,"179,442.48"
Ministry of Justice,HMCS,02-Jun-10,AA499-HMCS Change Programme,265000-IT & Telecommunications,LOGICA UK LTD,1231904,"89,932.86"
Ministry of Justice,HMCS,02-Jun-10,AV322-CP Change Management SUPS,532000-Tangible GBV - Additions,LOGICA UK LTD,1231904,"386,113.23"
Ministry of Justice,HMCS,02-Jun-10,BZ999-London Region,610400-Debtors <1 year - Prepayments & Accrued Income,CBRE RICHARD ELLIS,1231660,"32,753.13"
Ministry of Justice,HMCS,02-Jun-10,BZ999-London Region,532000-Tangible GBV - Additions,PARKERAY LTD,1232651,"428,757.30"
Ministry of Justice,HMCS,02-Jun-10,CZ999-South East Region,222001-Maintenance,BAILEY MAINTENANCE LTD,1231587,"25,822.07"
Ministry of Justice,HMCS,02-Jun-10,CZ999-South East Region,610400-Debtors <1 year - Prepayments & Accrued Income,CBRE RICHARD ELLIS,1231660,"44,062.50"
Ministry of Justice,HMCS,02-Jun-10,CZ999-South East Region,610400-Debtors <1 year - Prepayments & Accrued Income,GVA GRIMLEY LLP,1231795,"27,680.06"
Ministry of Justice,HMCS,02-Jun-10,DZ999-South West Region,222001-Maintenance,KIER BUILDING SERVICES ENG,116451,"33,676.43"
Ministry of Justice,HMCS,02-Jun-10,DZ999-South West Region,222001-Maintenance,NORLAND MANAGED SERVICES LTD,1231971,"37,968.28"
Ministry of Justice,HMCS,02-Jun-10,DZ999-South West Region,532000-Tangible GBV - Additions,ROK BUILDING LTD,1232701,"48,055.03"
Ministry of Justice,HMCS,02-Jun-10,EZ999-Wales Region,222001-Maintenance,KIER BUILDING SERVICES ENG,116451,"50,020.06"
Ministry of Justice,HMCS,02-Jun-10,EZ999-Wales Region,532000-Tangible GBV - Additions,KIER BUILDING SERVICES ENG,116451,"31,883.35"
Ministry of Justice,HMCS,02-Jun-10,EZ999-Wales Region,222001-Maintenance,KIER BUILDING SERVICES ENG,116451,"29,842.99"
Ministry of Justice,HMCS,02-Jun-10,FZ999-Midlands Region,610400-Debtors <1 year - Prepayments & Accrued Income,EVANS EASYSPACE LTD,1231741,"48,291.03"
Ministry of Justice,HMCS,02-Jun-10,GZ999-North West Region,222001-Maintenance,DTZ DEBENHAM TIE LEUNG,1231721,"66,320.03"
Ministry of Justice,HMCS,02-Jun-10,GZ999-North West Region,222002-Other Property Costs,GARTSIDE LTD,1231771,"2,172,948.06"
Ministry of Justice,HMCS,02-Jun-10,GZ999-North West Region,610400-Debtors <1 year - Prepayments & Accrued Income,PHILIP J DAVIES (HOLDINGS) PLC,1232663,"66,681.25"
Ministry of Justice,HMCS,02-Jun-10,GZ999-North West Region,610400-Debtors <1 year - Prepayments & Accrued Income,LONDON & CAPITAL PROPERTIES LTD,1231905,"100,443.41"
Ministry of Justice,HMCS,02-Jun-10,HZ999-North East and Yorkshire,222001-Maintenance,BAILEY MAINTENANCE LTD,1231587,"43,377.65"
Ministry of Justice,HMCS,02-Jun-10,HZ999-North East and Yorkshire,222001-Maintenance,BAILEY MAINTENANCE LTD,1231587,"52,088.74"
Ministry of Justice,HMCS,02-Jun-10,HZ999-North East and Yorkshire,610400-Debtors <1 year - Prepayments & Accrued Income,BNP PARIBAS REAL ESTATE,1231614,"40,156.94"
Ministry of Justice,HMCS,02-Jun-10,IZ999-RCJ Group,222001-Maintenance,CARILLION PLANNED MAINTENANCE,1231654,"64,601.79"
Ministry of Justice,MoJ HQ,02-Jun-10,ZZ900-MoJ HQ,311100-Legal Aid,LEGAL SERVICES COMMISSION,6155,"78,000,000.00"
Ministry of Justice,HMCS,03-Jun-10,FZ999-Midlands Region,710800-Creditor <1 yr - Third Party Monies,ONE TIME CAPS,117981,"39,103.84"
Ministry of Justice,HMCS,03-Jun-10,FZ999-Midlands Region,710800-Creditor <1 yr - Third Party Monies,ONE TIME CAPS,118897,"33,101.17"
Ministry of Justice,HMCS,03-Jun-10,FZ999-Midlands Region,710800-Creditor <1 yr - Third Party Monies,ONE TIME CAPS,119524,"26,038.27"
Ministry of Justice,MoJ HQ,03-Jun-10,ZZ900-MoJ HQ,245000-Grants in Aid to NDPBs,LEGAL SERVICES COMMISSION,6158,"7,000,000.00"
Ministry of Justice,MoJ HQ,03-Jun-10,ZZ900-MoJ HQ,265000-IT & Telecommunications,LOGICA UK LTD,1021512,"30,099.13"
Ministry of Justice,MoJ HQ,03-Jun-10,ZZ900-MoJ HQ,212001-Agency staff,CAPGEMINI UK PLC,1021467,"25,850.00"
Ministry of Justice,MoJ HQ,03-Jun-10,ZZ900-MoJ HQ,265000-IT & Telecommunications,LOGICA UK LTD,1021512,"133,360.15"
Ministry of Justice,MoJ HQ,03-Jun-10,ZZ900-MoJ HQ,212001-Agency staff,CAPGEMINI UK PLC,1021467,"38,671.60"
Ministry of Justice,MoJ HQ,03-Jun-10,ZZ900-MoJ HQ,710200-Creditors < 1 year - Trade & Other Creditors,COMPANY BARCLAYCARD CORPORATE,6157,"1,675,476.15"
Ministry of Justice,MoJ HQ,03-Jun-10,ZZ900-MoJ HQ,246000-Current Grants,VICTIM SUPPORT,1021577,"363,485.00"
Ministry of Justice,HMCS,04-Jun-10,AG999-Estates Directorate HMCS HQ,223000-Other Expenditure,DEPARTMENT FOR COMMUNITIES & LOCAL GOVERNMENT,1233665,"26,437.50"
Ministry of Justice,HMCS,04-Jun-10,AV322-CP Change Management SUPS,265000-IT & Telecommunications,LOGICA UK LTD,1233857,"81,379.33"
Ministry of Justice,HMCS,04-Jun-10,AV322-CP Change Management SUPS,265000-IT & Telecommunications,LOGICA UK LTD,1233857,"93,699.20"
Ministry of Justice,HMCS,04-Jun-10,AV322-CP Change Management SUPS,512000-Intangible GBV - Additions,LOGICA UK LTD,1233857,"86,301.40"
Ministry of Justice,HMCS,04-Jun-10,AV322-CP Change Management SUPS,512000-Intangible GBV - Additions,LOGICA UK LTD,1233857,"428,629.43"
Ministry of Justice,HMCS,04-Jun-10,AV326-CP Change Management Initiatives,262000-SCA Costs,LIBERATA UK LTD,1233851,"33,208.43"
Ministry of Justice,HMCS,04-Jun-10,AV329-CP-Mag. Courts Operational Bus.sys,265000-IT & Telecommunications,LOGICA UK LTD,1233857,"35,006.94"
Ministry of Justice,HMCS,04-Jun-10,AV329-CP-Mag. Courts Operational Bus.sys,532000-Tangible GBV - Additions,LOGICA UK LTD,1233857,"38,348.48"
Ministry of Justice,HMCS,04-Jun-10,BZ999-London Region,222001-Maintenance,SKANSEN INTERIORS LTD,1234831,"137,733.37"
Ministry of Justice,HMCS,04-Jun-10,BZ999-London Region,222001-Maintenance,SKANSEN INTERIORS LTD,1234831,"47,627.38"
Ministry of Justice,HMCS,04-Jun-10,CZ999-South East Region,222001-Maintenance,EC HARRIS LLP,1233689,"149,812.50"
Ministry of Justice,HMCS,04-Jun-10,CZ999-South East Region,222001-Maintenance,EC HARRIS LLP,1233689,"32,900.00"
Ministry of Justice,HMCS,04-Jun-10,CZ999-South East Region,610400-Debtors <1 year - Prepayments & Accrued Income,MAYFIELD - CRESTA HOUSE,1233878,"25,382.77"
Ministry of Justice,HMCS,04-Jun-10,CZ999-South East Region,610400-Debtors <1 year - Prepayments & Accrued Income,SYNERGY HUNTINGDON TRUSTEE LTD,1234859,"350,938.31"
Ministry of Justice,HMCS,04-Jun-10,CZ999-South East Region,610400-Debtors <1 year - Prepayments & Accrued Income,CBRE RICHARD ELLIS,1233617,"81,597.29"
Ministry of Justice,HMCS,04-Jun-10,DZ999-South West Region,223001-Printing Postage and Office expenditure,DX NETWORK SERVICES LTD,1233687,"253,923.06"
Ministry of Justice,HMCS,04-Jun-10,DZ999-South West Region,222002-Other Property Costs,REGENT OFFICE CARE LTD,1234770,"137,675.42"
Ministry of Justice,HMCS,04-Jun-10,DZ999-South West Region,223001-Printing Postage and Office expenditure,ROYAL MAIL,1234792,"74,310.68"
Ministry of Justice,HMCS,04-Jun-10,DZ999-South West Region,610400-Debtors <1 year - Prepayments & Accrued Income,HAMPSHIRE COUNTY COUNCIL,1233760,"250,000.00"
Ministry of Justice,HMCS,04-Jun-10,DZ999-South West Region,610400-Debtors <1 year - Prepayments & Accrued Income,NB REAL ESTATE,1233915,"29,939.59"
Ministry of Justice,HMCS,04-Jun-10,DZ999-South West Region,532000-Tangible GBV - Additions,ALL METAL ROOFING LTD,1233534,"162,132.09"
Ministry of Justice,HMCS,04-Jun-10,DZ999-South West Region,532000-Tangible GBV - Additions,ATKINS,1233551,"36,836.63"
Ministry of Justice,HMCS,04-Jun-10,DZ999-South West Region,610400-Debtors <1 year - Prepayments & Accrued Income,HAMPSHIRE COUNTY COUNCIL,1233760,"59,155.00"
Ministry of Justice,HMCS,04-Jun-10,DZ999-South West Region,610400-Debtors <1 year - Prepayments & Accrued Income,HAMPSHIRE COUNTY COUNCIL,1233760,"250,000.00"
Ministry of Justice,HMCS,04-Jun-10,DZ999-South West Region,610400-Debtors <1 year - Prepayments & Accrued Income,HAMPSHIRE COUNTY COUNCIL,1233760,"250,000.00"
Ministry of Justice,HMCS,04-Jun-10,EZ999-Wales Region,532000-Tangible GBV - Additions,RACKLINE LIMITED,1234764,"25,203.77"
Ministry of Justice,HMCS,04-Jun-10,EZ999-Wales Region,532000-Tangible GBV - Additions,WB GRIFFITHS & SON LTD,1234904,"27,131.71"
Ministry of Justice,HMCS,04-Jun-10,EZ999-Wales Region,610400-Debtors <1 year - Prepayments & Accrued Income,LAMBERT SMITH HAMPTON,1233839,"55,812.50"
Ministry of Justice,HMCS,04-Jun-10,FZ999-Midlands Region,222002-Other Property Costs,MITIE SECURITY LTD,1233894,"48,162.80"
Ministry of Justice,HMCS,04-Jun-10,FZ999-Midlands Region,610400-Debtors <1 year - Prepayments & Accrued Income,BOND WOLFE ASSETS LTD,1233582,"62,514.24"
Ministry of Justice,HMCS,04-Jun-10,FZ999-Midlands Region,532000-Tangible GBV - Additions,ALL SECURITY SYSTEMS LTD,1233535,"69,746.83"
Ministry of Justice,HMCS,04-Jun-10,FZ999-Midlands Region,532000-Tangible GBV - Additions,DRIVERS JONAS DELOITTE,1233676,"33,500.52"
Ministry of Justice,HMCS,04-Jun-10,GZ999-North West Region,610300-Debtors < 1 Year - Deposits & Advances,NEOPOST LTD,1233917,"121,966.00"
Ministry of Justice,HMCS,04-Jun-10,GZ999-North West Region,265000-IT & Telecommunications,BT TELECOMMUNICATIONS PLC,1233595,"28,370.76"
Ministry of Justice,HMCS,04-Jun-10,GZ999-North West Region,532000-Tangible GBV - Additions,CARILLION PLANNED MAINTENANCE,1233608,"31,111.65"
Ministry of Justice,HMCS,04-Jun-10,GZ999-North West Region,532000-Tangible GBV - Additions,ISG REGIONS LTD,1233805,"367,127.58"
Ministry of Justice,HMCS,04-Jun-10,GZ999-North West Region,222001-Maintenance,BAILEY MAINTENANCE LTD,1233556,"40,418.33"
Ministry of Justice,HMCS,04-Jun-10,HZ999-North East and Yorkshire,532000-Tangible GBV - Additions,JOHN MCASLAN & PARTNERS,1233817,"52,434.38"
Ministry of Justice,Tribunals,04-Jun-10,TR160-Operational Support,264000-Consultancy,FDS INTERNATIONAL LTD,1031903,"37,175.83"
Ministry of Justice,Tribunals,04-Jun-10,TR200-Regional South,222002-Other Property Costs,DERWENT LONDON PLC T/A DERWENT LONDON PROPERTY MANAGEMENT,1031887,"40,085.59"
Ministry of Justice,Tribunals,04-Jun-10,TR120-Corporate,222002-Other Property Costs,MITIE SECURITY LTD,1031978,"166,551.17"
Ministry of Justice,Tribunals,04-Jun-10,TB140-Change Programme,264000-Consultancy,ENLIGHTENED TRAINING (UK) LIMITED,1031901,"50,087.35"
Ministry of Justice,HMCS,07-Jun-10,AU999-National Taxing Teams,311200-Criminal Legal Aid,GROVE TOMPKINS BOSWORTH#DX 13040,120150,"34,295.36"
Ministry of Justice,HMCS,07-Jun-10,AU999-National Taxing Teams,311200-Criminal Legal Aid,H GODFREY QC#DX17,120152,"58,850.00"
Ministry of Justice,HMCS,07-Jun-10,AU999-National Taxing Teams,311200-Criminal Legal Aid,MESSRS ABBEY SOLICITORS#DX 28612,120173,"51,616.76"
Ministry of Justice,HMCS,07-Jun-10,AU999-National Taxing Teams,226000-Court Costs,MESSRS BARK & CO#DX 447,120188,"70,650.00"
Ministry of Justice,HMCS,07-Jun-10,AU999-National Taxing Teams,311200-Criminal Legal Aid,MESSRS DASS SOLICITORS#DX 149245,120234,"51,420.98"
Ministry of Justice,HMCS,07-Jun-10,AU999-National Taxing Teams,226000-Court Costs,MESSRS DAVIS & CO SOLICITORS#HP7 0DD,120240,"39,606.80"
Ministry of Justice,HMCS,07-Jun-10,AU999-National Taxing Teams,226000-Court Costs,MESSRS FURLEY PAGE#DX 5301,120268,"31,443.56"
Ministry of Justice,HMCS,07-Jun-10,AU999-National Taxing Teams,311200-Criminal Legal Aid,MESSRS HARBANS SINGH & CO#B69 3AD,120284,"29,349.00"
Ministry of Justice,HMCS,07-Jun-10,AU999-National Taxing Teams,226000-Court Costs,MESSRS RADCLIFFES LE BRASSEUR#DX 33063,120391,"91,889.57"
Ministry of Justice,HMCS,07-Jun-10,AU999-National Taxing Teams,311200-Criminal Legal Aid,MESSRS RICHMOND & BARNES#EC1A 4EN,120396,"45,082.57"
Ministry of Justice,HMCS,07-Jun-10,AU999-National Taxing Teams,311200-Criminal Legal Aid,MR R RINDER#DX 444,120533,"39,266.66"
Ministry of Justice,HMCS,07-Jun-10,AU999-National Taxing Teams,311200-Criminal Legal Aid,T KENDAL#DX 17,120560,"58,850.00"
Ministry of Justice,HMCS,07-Jun-10,AU999-National Taxing Teams,226000-Court Costs,MESSRS GRAHAM EVANS & PARTNERS#DX 39573,1235057,"80,493.50"
Ministry of Justice,HMCS,07-Jun-10,AU999-National Taxing Teams,226000-Court Costs,MESSRS LEWIS NEDAS & CO#DX 57056,1235098,"25,875.00"
Ministry of Justice,HMCS,07-Jun-10,AU999-National Taxing Teams,226000-Court Costs,MESSRS HALLIWELLS#DX 14317,1235060,"73,538.78"
Ministry of Justice,HMCS,07-Jun-10,AU999-National Taxing Teams,311200-Criminal Legal Aid,MESSRS ABV SOLICITORS#DX 44650,120174,"41,488.39"
Ministry of Justice,HMCS,07-Jun-10,AU999-National Taxing Teams,311200-Criminal Legal Aid,MESSRS GUNEY CLARK#DX142580,120278,"40,293.74"
Ministry of Justice,HMCS,07-Jun-10,AU999-National Taxing Teams,311200-Criminal Legal Aid,MESSRS STEPHEN LICKRISH & ASSOCIATES# M1 3LD,120422,"89,937.65"
Ministry of Justice,HMCS,07-Jun-10,AU999-National Taxing Teams,311200-Criminal Legal Aid,MESSRS TATES#DX 26439,120440,"52,594.06"
Ministry of Justice,HMCS,07-Jun-10,AU999-National Taxing Teams,226000-Court Costs,MESSRS BLACKFORDS LLP#DX 2958,1235002,"69,922.78"
Ministry of Justice,HMCS,07-Jun-10,AU999-National Taxing Teams,226000-Court Costs,MESSRS DRAYCOTT BROWNE#M2 3WQ,1235031,"97,678.53"
Ministry of Justice,HMCS,07-Jun-10,AU999-National Taxing Teams,226000-Court Costs,MESSRS SHOOSMITHS SOLICITORS#RG1 1SH,120414,"30,742.08"
Ministry of Justice,MoJ HQ,07-Jun-10,ZZ900-MoJ HQ,246000-Current Grants,THE PAROLE BOARD,6163,"950,000.00"
Ministry of Justice,MoJ HQ,07-Jun-10,ZZ900-MoJ HQ,263000-Other Contracted Out Services,CAPITA HARTSHEAD LTD,1021619,"49,364.55"
Ministry of Justice,MoJ HQ,07-Jun-10,ZZ900-MoJ HQ,222002-Other Property Costs,HMRC,1021652,"155,095.87"
Ministry of Justice,MoJ HQ,07-Jun-10,ZZ900-MoJ HQ,223000-Other Expenditure,AD RESEARCH AND ANALYSIS LTD,1021599,"34,318.23"
Ministry of Justice,MoJ HQ,07-Jun-10,ZZ900-MoJ HQ,223000-Other Expenditure,THE FUTURES COMPANY,1021706,"42,123.75"
Ministry of Justice,MoJ HQ,07-Jun-10,ZZ900-MoJ HQ,223000-Other Expenditure,LAW WORKS,1021662,"25,000.00"
Ministry of Justice,MoJ HQ,07-Jun-10,ZZ900-MoJ HQ,223000-Other Expenditure,ELECTRONIC IMMIGRATION NETWORK,1021634,"45,648.75"
Ministry of Justice,MoJ HQ,07-Jun-10,ZZ900-MoJ HQ,223000-Other Expenditure,SWEET & MAXWELL LTD,1021703,"61,135.11"
Ministry of Justice,MoJ HQ,07-Jun-10,ZZ900-MoJ HQ,222002-Other Property Costs,CARLISLE SECURITY SERVICES LTD,1021620,"25,842.48"
Ministry of Justice,MoJ HQ,07-Jun-10,ZZ900-MoJ HQ,222002-Other Property Costs,CARLISLE SECURITY SERVICES LTD,1021620,"30,005.68"
Ministry of Justice,MoJ HQ,07-Jun-10,ZZ900-MoJ HQ,221000-Property Rent and Rates,BNP PARIBAS REAL ESTATE,1021609,"60,189.38"
Ministry of Justice,MoJ HQ,07-Jun-10,ZZ900-MoJ HQ,221000-Property Rent and Rates,BNP PARIBAS REAL ESTATE,1021609,"58,908.75"
Ministry of Justice,MoJ HQ,07-Jun-10,ZZ900-MoJ HQ,222002-Other Property Costs,LANCASTER OFFICE CLEANING CO LTD,1021659,"113,547.65"
Ministry of Justice,MoJ HQ,07-Jun-10,ZZ900-MoJ HQ,222002-Other Property Costs,LANCASTER OFFICE CLEANING CO LTD,1021659,"113,547.65"
Ministry of Justice,MoJ HQ,07-Jun-10,ZZ900-MoJ HQ,532000-Tangible GBV - Additions,M J FERGUSON LTD,1021670,"68,838.33"
Ministry of Justice,MoJ HQ,07-Jun-10,ZZ900-MoJ HQ,265000-IT & Telecommunications,ATOS ORIGIN IT SERVICES UK LTD,1021604,"1,846,051.90"
Ministry of Justice,MoJ HQ,07-Jun-10,ZZ900-MoJ HQ,265000-IT & Telecommunications,ATOS ORIGIN IT SERVICES UK LTD,1021604,"453,177.53"
Ministry of Justice,MoJ HQ,07-Jun-10,ZZ900-MoJ HQ,265000-IT & Telecommunications,ATOS ORIGIN IT SERVICES UK LTD,1021604,"1,095,423.13"
Ministry of Justice,MoJ HQ,07-Jun-10,ZZ900-MoJ HQ,265000-IT & Telecommunications,ATOS ORIGIN IT SERVICES UK LTD,1021604,"88,830.00"
Ministry of Justice,MoJ HQ,07-Jun-10,ZZ900-MoJ HQ,265000-IT & Telecommunications,ATOS ORIGIN IT SERVICES UK LTD,1021604,"102,430.63"
Ministry of Justice,MoJ HQ,07-Jun-10,ZZ900-MoJ HQ,265000-IT & Telecommunications,ATOS ORIGIN IT SERVICES UK LTD,1021604,"450,948.55"
Ministry of Justice,MoJ HQ,07-Jun-10,ZZ900-MoJ HQ,265000-IT & Telecommunications,ATOS ORIGIN IT SERVICES UK LTD,1021604,"390,383.18"
Ministry of Justice,MoJ HQ,07-Jun-10,ZZ900-MoJ HQ,265000-IT & Telecommunications,ATOS ORIGIN IT SERVICES UK LTD,1021604,"248,279.85"
Ministry of Justice,MoJ HQ,07-Jun-10,ZZ900-MoJ HQ,265000-IT & Telecommunications,ATOS ORIGIN IT SERVICES UK LTD,1021604,"68,556.55"
Ministry of Justice,MoJ HQ,07-Jun-10,ZZ900-MoJ HQ,265000-IT & Telecommunications,ATOS ORIGIN IT SERVICES UK LTD,1021604,"104,509.20"
Ministry of Justice,MoJ HQ,07-Jun-10,ZZ900-MoJ HQ,265000-IT & Telecommunications,LOGICA UK LTD,1021668,"59,944.98"
Ministry of Justice,MoJ HQ,07-Jun-10,ZZ900-MoJ HQ,265000-IT & Telecommunications,LOGICA UK LTD,1021668,"230,781.75"
Ministry of Justice,MoJ HQ,07-Jun-10,ZZ900-MoJ HQ,265000-IT & Telecommunications,LOGICA UK LTD,1021668,"29,962.50"
Ministry of Justice,MoJ HQ,07-Jun-10,ZZ900-MoJ HQ,265000-IT & Telecommunications,LOGICA UK LTD,1021668,"40,897.05"
Ministry of Justice,MoJ HQ,07-Jun-10,ZZ900-MoJ HQ,265000-IT & Telecommunications,LOGICA UK LTD,1021668,"41,881.99"
Ministry of Justice,MoJ HQ,07-Jun-10,ZZ900-MoJ HQ,265000-IT & Telecommunications,LOGICA UK LTD,1021668,"34,731.83"
Ministry of Justice,MoJ HQ,07-Jun-10,ZZ900-MoJ HQ,265000-IT & Telecommunications,LOGICA UK LTD,1021668,"528,750.00"
Ministry of Justice,MoJ HQ,07-Jun-10,ZZ900-MoJ HQ,265000-IT & Telecommunications,LOGICA UK LTD,1021668,"63,177.05"
Ministry of Justice,MoJ HQ,07-Jun-10,ZZ900-MoJ HQ,265000-IT & Telecommunications,LOGICA UK LTD,1021668,"433,784.15"
Ministry of Justice,MoJ HQ,07-Jun-10,ZZ900-MoJ HQ,265000-IT & Telecommunications,LOGICA UK LTD,1021668,"52,461.92"
Ministry of Justice,MoJ HQ,07-Jun-10,ZZ900-MoJ HQ,265000-IT & Telecommunications,LOGICA UK LTD,1021668,"36,490.22"
Ministry of Justice,MoJ HQ,07-Jun-10,ZZ900-MoJ HQ,265000-IT & Telecommunications,LOGICA UK LTD,1021668,"149,663.28"
Ministry of Justice,MoJ HQ,07-Jun-10,ZZ900-MoJ HQ,265000-IT & Telecommunications,LOGICA UK LTD,1021668,"172,613.38"
Ministry of Justice,MoJ HQ,07-Jun-10,ZZ900-MoJ HQ,223001-Printing Postage and Office expenditure,LIBERATA UK LTD,1021667,"71,686.50"
Ministry of Justice,MoJ HQ,07-Jun-10,ZZ900-MoJ HQ,223001-Printing Postage and Office expenditure,LIBERATA UK LTD,1021667,"39,915.27"
Ministry of Justice,MoJ HQ,07-Jun-10,ZZ900-MoJ HQ,265000-IT & Telecommunications,ATOS ORIGIN IT SERVICES UK LTD,1021604,"37,610.58"
Ministry of Justice,MoJ HQ,07-Jun-10,ZZ900-MoJ HQ,245000-Grants in Aid to NDPBs,YOUTH JUSTICE BOARD FOR ENGLAND & WALES,6164,"20,000,000.00"
Ministry of Justice,MoJ HQ,08-Jun-10,ZZ900-MoJ HQ,246000-Current Grants,ACTION FOR PRISONERS FAMILIES#RC35111004,1021753,"77,500.00"
Ministry of Justice,Tribunals,08-Jun-10,TR200-Regional South,222001-Maintenance,MCDOWALL AIR CONDITIONING (UK) LTD,1032257,"43,661.95"
Ministry of Justice,HMCS,09-Jun-10,AG999-Estates Directorate HMCS HQ,532000-Tangible GBV - Additions,EC HARRIS LLP,1239057,"28,290.84"
Ministry of Justice,HMCS,09-Jun-10,AV322-CP Change Management SUPS,265000-IT & Telecommunications,LOGICA UK LTD,1239317,"63,923.53"
Ministry of Justice,HMCS,09-Jun-10,AV322-CP Change Management SUPS,265000-IT & Telecommunications,LOGICA UK LTD,1239317,"234,322.03"
Ministry of Justice,HMCS,09-Jun-10,AV322-CP Change Management SUPS,532000-Tangible GBV - Additions,LOGICA UK LTD,1239317,"644,972.89"
Ministry of Justice,HMCS,09-Jun-10,AV326-CP Change Management Initiatives,262000-SCA Costs,LIBERATA UK LTD,1239311,"80,282.58"
Ministry of Justice,HMCS,09-Jun-10,BZ999-London Region,222001-Maintenance,COFELY LTD,1238958,"125,596.83"
Ministry of Justice,HMCS,09-Jun-10,BZ999-London Region,222001-Maintenance,EC HARRIS LLP,1239057,"102,712.55"
Ministry of Justice,HMCS,09-Jun-10,BZ999-London Region,532000-Tangible GBV - Additions,HURD ROLLAND PARTNERSHIP,1239236,"51,063.84"
Ministry of Justice,HMCS,09-Jun-10,BZ999-London Region,265000-IT & Telecommunications,BT TELECOMMUNICATIONS PLC,1238893,"164,883.64"
Ministry of Justice,HMCS,09-Jun-10,BZ999-London Region,223001-Printing Postage and Office expenditure,ROYAL MAIL,1240219,"37,382.42"
Ministry of Justice,HMCS,09-Jun-10,BZ999-London Region,532000-Tangible GBV - Additions,SKANSEN INTERIORS LTD,1240257,"45,848.63"
Ministry of Justice,HMCS,09-Jun-10,BZ999-London Region,532000-Tangible GBV - Additions,TURNER & TOWNSEND PROJECT MANAGEMENT,1240351,"153,561.34"
Ministry of Justice,HMCS,09-Jun-10,CZ999-South East Region,532000-Tangible GBV - Additions,ACCLAIM CONTRACTS LTD,1238759,"27,449.18"
Ministry of Justice,HMCS,09-Jun-10,CZ999-South East Region,262000-SCA Costs,MODERN COURTS (EAST ANGLIA) LTD,1239387,"472,548.37"
Ministry of Justice,HMCS,09-Jun-10,DZ999-South West Region,226000-Court Costs,MERRILL LEGAL SOLUTIONS,1239371,"44,043.68"
Ministry of Justice,HMCS,09-Jun-10,DZ999-South West Region,222002-Other Property Costs,MITIE SECURITY LTD,1239386,"306,537.01"
Ministry of Justice,HMCS,09-Jun-10,DZ999-South West Region,610400-Debtors <1 year - Prepayments & Accrued Income,MAYBROOK PROPERTIES LTD,1239349,"59,675.32"
Ministry of Justice,HMCS,09-Jun-10,DZ999-South West Region,222001-Maintenance,GLOWETH LTD,1239141,"31,766.71"
Ministry of Justice,HMCS,09-Jun-10,DZ999-South West Region,532000-Tangible GBV - Additions,CEI ELECTRICAL LTD,1238928,"42,715.70"
Ministry of Justice,HMCS,09-Jun-10,EZ999-Wales Region,532000-Tangible GBV - Additions,INTEGRAL UK LTD,121579,"31,324.88"
Ministry of Justice,HMCS,09-Jun-10,FZ999-Midlands Region,222002-Other Property Costs,MITIE SECURITY LTD,1239386,"450,948.26"
Ministry of Justice,HMCS,09-Jun-10,FZ999-Midlands Region,222002-Other Property Costs,REGENT OFFICE CARE LTD,1240191,"258,980.06"
Ministry of Justice,HMCS,09-Jun-10,FZ999-Midlands Region,532000-Tangible GBV - Additions,DENTON CORKER MARSHALL LLP,1239031,"75,803.95"
Ministry of Justice,HMCS,09-Jun-10,FZ999-Midlands Region,532000-Tangible GBV - Additions,MOUCHEL MANAGEMENT CONSULTING LTD,1239403,"75,130.99"
Ministry of Justice,HMCS,09-Jun-10,GZ999-North West Region,222002-Other Property Costs,ELITE CLEANING & ENV SERVICES LTD,1239068,"174,518.01"
Ministry of Justice,HMCS,09-Jun-10,GZ999-North West Region,222002-Other Property Costs,"OCS GROUP UK LTD, OCS ENGINEERING",1239438,"29,441.99"
Ministry of Justice,HMCS,09-Jun-10,GZ999-North West Region,532000-Tangible GBV - Additions,HURD ROLLAND PARTNERSHIP,1239236,"34,666.01"
Ministry of Justice,HMCS,09-Jun-10,GZ999-North West Region,262000-SCA Costs,UK COURT SERVICES LTD,1240358,"534,352.67"
Ministry of Justice,HMCS,09-Jun-10,GZ999-North West Region,262000-SCA Costs,UK COURT SERVICES LTD,1240358,"534,352.67"
Ministry of Justice,HMCS,09-Jun-10,GZ999-North West Region,262000-SCA Costs,UK COURT SERVICES LTD,1240358,"527,683.71"
Ministry of Justice,HMCS,09-Jun-10,GZ999-North West Region,262000-SCA Costs,UK COURT SERVICES LTD,1240358,"533,828.82"
Ministry of Justice,HMCS,09-Jun-10,GZ999-North West Region,262000-SCA Costs,UK COURT SERVICES LTD,1240358,"533,828.82"
Ministry of Justice,HMCS,09-Jun-10,HZ999-North East and Yorkshire,222002-Other Property Costs,ELITE CLEANING & ENV SERVICES LTD,1239068,"135,882.03"
Ministry of Justice,HMCS,09-Jun-10,HZ999-North East and Yorkshire,610400-Debtors <1 year - Prepayments & Accrued Income,HIGH POINT ESTATES LTD,1239210,"32,943.85"
Ministry of Justice,HMCS,09-Jun-10,IZ999-RCJ Group,610400-Debtors <1 year - Prepayments & Accrued Income,EDDISONS,1239059,"32,424.50"
Ministry of Justice,HMCS,09-Jun-10,IZ999-RCJ Group,222001-Maintenance,EC HARRIS LLP,1239057,"31,725.00"
Ministry of Justice,HMCS,09-Jun-10,IZ999-RCJ Group,222001-Maintenance,SYKES & SON LTD,1240312,"36,660.59"
Ministry of Justice,HMCS,10-Jun-10,FZ999-Midlands Region,710800-Creditor <1 yr - Third Party Monies,ONE TIME CAPS,122186,"26,188.78"
Ministry of Justice,HMCS,10-Jun-10,FZ999-Midlands Region,710800-Creditor <1 yr - Third Party Monies,ONE TIME CAPS,123784,"58,755.30"
Ministry of Justice,HMCS,10-Jun-10,FZ999-Midlands Region,710800-Creditor <1 yr - Third Party Monies,ONE TIME CAPS,125029,"36,737.96"
Ministry of Justice,HMCS,10-Jun-10,FZ999-Midlands Region,710800-Creditor <1 yr - Third Party Monies,ONE TIME CAPS,125778,"31,600.92"
Ministry of Justice,HMCS,10-Jun-10,FZ999-Midlands Region,710800-Creditor <1 yr - Third Party Monies,ONE TIME CAPS,125888,"26,530.61"
Ministry of Justice,HMCS,10-Jun-10,FZ999-Midlands Region,710800-Creditor <1 yr - Third Party Monies,ONE TIME CAPS,125899,"39,031.06"
Ministry of Justice,HMCS,10-Jun-10,IZ999-RCJ Group,311200-Criminal Legal Aid,MR J HILL QC#200704708-B3,125937,"61,572.93"
Ministry of Justice,HMCS,10-Jun-10,IZ999-RCJ Group,311200-Criminal Legal Aid,MR TOM MITCHELL#200704708-B3,125938,"30,237.51"
Ministry of Justice,HMCS,10-Jun-10,IZ999-RCJ Group,311200-Criminal Legal Aid,MR ERIC ELLIOTT QC#200704710-B3,125942,"50,892.68"
Ministry of Justice,HMCS,10-Jun-10,IZ999-RCJ Group,311200-Criminal Legal Aid,MR JOHN GILLETTE#200704710-B3,125943,"25,517.09"
Ministry of Justice,HMCS,10-Jun-10,IZ999-RCJ Group,311200-Criminal Legal Aid,MESSRS WATSON WOODHOUSE SOLICITORS#200704710-B3,125944,"76,278.13"
Ministry of Justice,MoJ HQ,10-Jun-10,ZZ900-MoJ HQ,311100-Legal Aid,LEGAL SERVICES COMMISSION,6165,"22,800,000.00"
Ministry of Justice,MoJ HQ,10-Jun-10,ZZ900-MoJ HQ,246000-Current Grants,MONEY ADVICE TRUST,1021996,"187,500.00"
Ministry of Justice,MoJ HQ,10-Jun-10,ZZ900-MoJ HQ,263000-Other Contracted Out Services,STAFFORDSHIRE COUNTY COUNCIL,1022049,"116,563.53"
Ministry of Justice,MoJ HQ,10-Jun-10,ZZ900-MoJ HQ,223000-Other Expenditure,SWEET & MAXWELL LTD,1022053,"38,859.60"
Ministry of Justice,MoJ HQ,10-Jun-10,ZZ900-MoJ HQ,223000-Other Expenditure,TNT UK LTD,1022064,"102,073.52"
Ministry of Justice,MoJ HQ,10-Jun-10,ZZ900-MoJ HQ,532000-Tangible GBV - Additions,LIBERATA UK LTD,1021977,"80,089.69"
Ministry of Justice,MoJ HQ,10-Jun-10,ZZ900-MoJ HQ,212001-Agency staff,CONCERTO CONSULTING,1021892,"46,581.12"
Ministry of Justice,MoJ HQ,10-Jun-10,ZZ900-MoJ HQ,212001-Agency staff,ALPINE RESOURCING LTD,1021851,"25,908.75"
Ministry of Justice,MoJ HQ,10-Jun-10,ZZ900-MoJ HQ,265000-IT & Telecommunications,ATOS ORIGIN IT SERVICES UK LTD,1021860,"40,822.32"
Ministry of Justice,MoJ HQ,10-Jun-10,ZZ900-MoJ HQ,265000-IT & Telecommunications,LOGICA UK LTD,1021979,"66,680.08"
Ministry of Justice,MoJ HQ,10-Jun-10,ZZ900-MoJ HQ,265000-IT & Telecommunications,LOGICA UK LTD,1021979,"26,945.66"
Ministry of Justice,MoJ HQ,10-Jun-10,ZZ900-MoJ HQ,265000-IT & Telecommunications,ATOS ORIGIN IT SERVICES UK LTD,1021860,"740,715.30"
Ministry of Justice,MoJ HQ,10-Jun-10,ZZ900-MoJ HQ,532000-Tangible GBV - Additions,IBM UNITED KINGDOM LTD,1021953,"37,216.01"
Ministry of Justice,MoJ HQ,10-Jun-10,ZZ900-MoJ HQ,265000-IT & Telecommunications,CAPGEMINI UK PLC,1021879,"303,150.00"
Ministry of Justice,MoJ HQ,10-Jun-10,ZZ900-MoJ HQ,265000-IT & Telecommunications,ATOS ORIGIN IT SERVICES UK LTD,1021860,"1,402,660.95"
Ministry of Justice,MoJ HQ,10-Jun-10,ZZ900-MoJ HQ,265000-IT & Telecommunications,ATOS ORIGIN IT SERVICES UK LTD,1021860,"538,817.40"
Ministry of Justice,MoJ HQ,10-Jun-10,ZZ900-MoJ HQ,532000-Tangible GBV - Additions,ATOS ORIGIN IT SERVICES UK LTD,1021860,"444,766.88"
Ministry of Justice,MoJ HQ,10-Jun-10,ZZ900-MoJ HQ,265000-IT & Telecommunications,LOGICA UK LTD,1021979,"98,536.16"
Ministry of Justice,MoJ HQ,10-Jun-10,ZZ900-MoJ HQ,212001-Agency staff,AMTEC CONSULTING PLC,1021855,"32,900.00"
Ministry of Justice,MoJ HQ,10-Jun-10,ZZ900-MoJ HQ,265000-IT & Telecommunications,LOGICA UK LTD,1021979,"111,625.00"
Ministry of Justice,MoJ HQ,10-Jun-10,ZZ900-MoJ HQ,212001-Agency staff,PARITY RESOURCES LTD,1022016,"27,142.50"
Ministry of Justice,MoJ HQ,10-Jun-10,ZZ900-MoJ HQ,265000-IT & Telecommunications,ATOS ORIGIN IT SERVICES UK LTD,1021860,"40,778.38"
Ministry of Justice,MoJ HQ,10-Jun-10,ZZ900-MoJ HQ,265000-IT & Telecommunications,SYNETRIX LTD,1022054,"38,335.00"
Ministry of Justice,MoJ HQ,10-Jun-10,ZZ900-MoJ HQ,265000-IT & Telecommunications,LOGICA UK LTD,1021978,"68,282.78"
Ministry of Justice,MoJ HQ,10-Jun-10,ZZ900-MoJ HQ,532000-Tangible GBV - Additions,LOGICA UK LTD,1021978,"249,400.21"
Ministry of Justice,MoJ HQ,10-Jun-10,ZZ900-MoJ HQ,223000-Other Expenditure,PRINCIPAL HAYLEY HOTELS AND CONFERENCE VENUES,1022028,"45,343.31"
Ministry of Justice,MoJ HQ,10-Jun-10,ZZ900-MoJ HQ,223000-Other Expenditure,MORGAN HARRIS BURROWS LLP,1021998,"90,107.22"
Ministry of Justice,HMCS,11-Jun-10,AV322-CP Change Management SUPS,265000-IT & Telecommunications,ATOS ORIGIN IT SERVICES UK LTD,1241356,"437,915.45"
Ministry of Justice,HMCS,11-Jun-10,BZ999-London Region,610400-Debtors <1 year - Prepayments & Accrued Income,GREAT CAPITAL PARTNERSHIP (GP) LTD,1241550,"270,143.66"
Ministry of Justice,HMCS,11-Jun-10,BZ999-London Region,532000-Tangible GBV - Additions,PARKERAY LTD,1242499,"185,924.63"
Ministry of Justice,HMCS,11-Jun-10,BZ999-London Region,532000-Tangible GBV - Additions,LAING O'ROURKE CONSTRUCTION SOUTH LTD,1241645,"1,708,222.05"
Ministry of Justice,HMCS,11-Jun-10,BZ999-London Region,223001-Printing Postage and Office expenditure,DX NETWORK SERVICES LTD,1241496,"366,656.96"
Ministry of Justice,HMCS,11-Jun-10,BZ999-London Region,226000-Court Costs,SELLERS LEGAL SERVICES LTD,1242568,"46,333.56"
Ministry of Justice,HMCS,11-Jun-10,CZ999-South East Region,222001-Maintenance,METSHAPE LTD,1241699,"62,717.51"
Ministry of Justice,HMCS,11-Jun-10,CZ999-South East Region,610400-Debtors <1 year - Prepayments & Accrued Income,STANDARD LIFE INVESTMENTS,1242607,"251,995.49"
Ministry of Justice,HMCS,11-Jun-10,CZ999-South East Region,610400-Debtors <1 year - Prepayments & Accrued Income,ABERDEEN PROPERTY INVESTORS,1241332,"56,014.89"
Ministry of Justice,HMCS,11-Jun-10,CZ999-South East Region,610400-Debtors <1 year - Prepayments & Accrued Income,SUFFOLKLIFE,1242622,"32,593.00"
Ministry of Justice,HMCS,11-Jun-10,CZ999-South East Region,610400-Debtors <1 year - Prepayments & Accrued Income,GDPP,1241536,"62,421.88"
Ministry of Justice,HMCS,11-Jun-10,CZ999-South East Region,532000-Tangible GBV - Additions,COFELY LTD,1241450,"157,531.08"
Ministry of Justice,HMCS,11-Jun-10,DZ999-South West Region,222001-Maintenance,MOUCHEL MANAGEMENT CONSULTING LTD,1241719,"26,631.53"
Ministry of Justice,HMCS,11-Jun-10,DZ999-South West Region,263000-Other Contracted Out Services,COMPASS SERVICES UK & IRELAND LTD,126222,"29,164.68"
Ministry of Justice,HMCS,11-Jun-10,DZ999-South West Region,610400-Debtors <1 year - Prepayments & Accrued Income,ABERDEEN PROPERTY INVESTORS,1241332,"74,575.02"
Ministry of Justice,HMCS,11-Jun-10,DZ999-South West Region,610400-Debtors <1 year - Prepayments & Accrued Income,KING STURGE LLP,1241633,"41,768.02"
Ministry of Justice,HMCS,11-Jun-10,DZ999-South West Region,610400-Debtors <1 year - Prepayments & Accrued Income,SWANSTON HOLDINGS,1242628,"31,137.50"
Ministry of Justice,HMCS,11-Jun-10,DZ999-South West Region,262000-SCA Costs,ENTERPRISE CIVIC BUILDINGS LIMITED,1241509,"284,591.07"
Ministry of Justice,HMCS,11-Jun-10,EZ999-Wales Region,610400-Debtors <1 year - Prepayments & Accrued Income,NB REAL ESTATE,1241729,"31,638.67"
Ministry of Justice,HMCS,11-Jun-10,EZ999-Wales Region,610400-Debtors <1 year - Prepayments & Accrued Income,NB REAL ESTATE,1241729,"31,638.67"
Ministry of Justice,HMCS,11-Jun-10,EZ999-Wales Region,610400-Debtors <1 year - Prepayments & Accrued Income,PRUDENTIAL PROPERTY INVESTMENT MANAGERS LTD,1242518,"32,383.01"
Ministry of Justice,HMCS,11-Jun-10,EZ999-Wales Region,610400-Debtors <1 year - Prepayments & Accrued Income,SCOTTS PROPERTY LLP,1242563,"39,656.25"
Ministry of Justice,HMCS,11-Jun-10,EZ999-Wales Region,610400-Debtors <1 year - Prepayments & Accrued Income,CITY AND COUNTY OF SWANSEA,1241443,"83,543.69"
Ministry of Justice,HMCS,11-Jun-10,FZ999-Midlands Region,265000-IT & Telecommunications,BT TELECOMMUNICATIONS PLC,1241407,"35,778.06"
Ministry of Justice,HMCS,11-Jun-10,FZ999-Midlands Region,222001-Maintenance,MITIE TECHNICAL FACILITIES MANAGEMENT LTD,1241707,"82,475.94"
Ministry of Justice,HMCS,11-Jun-10,FZ999-Midlands Region,610400-Debtors <1 year - Prepayments & Accrued Income,PRICEWATERHOUSE COOPERS LLP,1242515,"146,626.20"
Ministry of Justice,HMCS,11-Jun-10,FZ999-Midlands Region,610400-Debtors <1 year - Prepayments & Accrued Income,PRICEWATERHOUSE COOPERS LLP,1242515,"136,688.63"
Ministry of Justice,HMCS,11-Jun-10,FZ999-Midlands Region,610400-Debtors <1 year - Prepayments & Accrued Income,PRICEWATERHOUSE COOPERS LLP,1242515,"146,626.20"
Ministry of Justice,HMCS,11-Jun-10,GZ999-North West Region,610300-Debtors < 1 Year - Deposits & Advances,NEOPOST LTD,1241731,"99,215.00"
Ministry of Justice,HMCS,11-Jun-10,GZ999-North West Region,532000-Tangible GBV - Additions,WALTER CAREFOOT & SONS (CONSTRUCTION) LTD T/A WALTER CAREFOOT LTD,1242670,"29,908.07"
Ministry of Justice,HMCS,11-Jun-10,GZ999-North West Region,610400-Debtors <1 year - Prepayments & Accrued Income,HURSTWOOD PROPERTIES (R) LTD,1241594,"31,494.04"
Ministry of Justice,HMCS,11-Jun-10,GZ999-North West Region,610400-Debtors <1 year - Prepayments & Accrued Income,LAMBERT SMITH HAMPTON,1241647,"30,498.01"
Ministry of Justice,HMCS,11-Jun-10,GZ999-North West Region,610400-Debtors <1 year - Prepayments & Accrued Income,SAVILLS COMMERCIAL LTD,1242558,"128,549.41"
Ministry of Justice,HMCS,11-Jun-10,HZ999-North East and Yorkshire,610400-Debtors <1 year - Prepayments & Accrued Income,KNIGHT FRANK LLP,1241639,"70,651.74"
Ministry of Justice,HMCS,11-Jun-10,HZ999-North East and Yorkshire,610400-Debtors <1 year - Prepayments & Accrued Income,M J MAPP LTD,1241670,"120,405.05"
Ministry of Justice,HMCS,11-Jun-10,HZ999-North East and Yorkshire,610400-Debtors <1 year - Prepayments & Accrued Income,MPS2 LTD,1241721,"46,206.88"
Ministry of Justice,HMCS,11-Jun-10,IZ999-RCJ Group,610400-Debtors <1 year - Prepayments & Accrued Income,EDDISONS,1241500,"33,999.81"
Ministry of Justice,HMCS,11-Jun-10,IZ999-RCJ Group,222002-Other Property Costs,VICTORIA MEDICAL & GENERAL CLEANING SERVICES LTD,1242658,"65,716.73"
Ministry of Justice,MoJ HQ,11-Jun-10,ZZ900-MoJ HQ,532000-Tangible GBV - Additions,DTZ DEBENHAM TIE LEUNG,1022090,"35,535.17"
Ministry of Justice,MoJ HQ,11-Jun-10,ZZ900-MoJ HQ,532000-Tangible GBV - Additions,M J FERGUSON LTD,1022099,"341,916.08"
Ministry of Justice,MoJ HQ,11-Jun-10,ZZ900-MoJ HQ,532000-Tangible GBV - Additions,M J FERGUSON LTD,1022099,"341,916.08"
Ministry of Justice,Tribunals,11-Jun-10,TR200-Regional South,221000-Property Rent and Rates,SAVILLS COMMERCIAL LTD,1032902,"53,603.51"
Ministry of Justice,Tribunals,11-Jun-10,TR200-Regional South,221000-Property Rent and Rates,COLLIER & MADGE PLC,1032630,"168,759.38"
Ministry of Justice,Tribunals,11-Jun-10,TR200-Regional South,221000-Property Rent and Rates,GE REAL ESTATE,1032705,"136,088.21"
Ministry of Justice,Tribunals,11-Jun-10,TR200-Regional South,222002-Other Property Costs,NB REAL ESTATE,1032795,"61,817.58"
Ministry of Justice,Tribunals,11-Jun-10,TR200-Regional South,221000-Property Rent and Rates,MAPELEY STEPS CONTRACTOR LTD,1032769,"69,368.03"
Ministry of Justice,Tribunals,11-Jun-10,TR200-Regional South,221000-Property Rent and Rates,SANDERSON WEATHERALL,1032901,"82,690.63"
Ministry of Justice,Tribunals,11-Jun-10,TR200-Regional South,222002-Other Property Costs,SANDERSON WEATHERALL,1032900,"30,379.92"
Ministry of Justice,Tribunals,11-Jun-10,TR190-Regional North,221000-Property Rent and Rates,ABERDEEN PROPERTY INVESTORS,1032625,"90,975.84"
Ministry of Justice,Tribunals,11-Jun-10,TR190-Regional North,222002-Other Property Costs,OPTIC ASSET MANAGEMENT LTD,1032866,"66,799.48"
Ministry of Justice,Tribunals,11-Jun-10,TR200-Regional South,221000-Property Rent and Rates,EDDISONS,1032691,"39,527.51"
Ministry of Justice,Tribunals,11-Jun-10,TR200-Regional South,221000-Property Rent and Rates,GVA GRIMLEY LLP,1032720,"34,206.53"
Ministry of Justice,Tribunals,11-Jun-10,TR190-Regional North,221000-Property Rent and Rates,HELIX PROPERTIES,1032727,"35,172.45"
Ministry of Justice,Tribunals,11-Jun-10,TR190-Regional North,221000-Property Rent and Rates,STANDARD LIFE INVESTMENTS,1032914,"36,937.50"
Ministry of Justice,Tribunals,11-Jun-10,TR200-Regional South,221000-Property Rent and Rates,CBRE RICHARD ELLIS,1032664,"30,856.38"
Ministry of Justice,Tribunals,11-Jun-10,TR200-Regional South,221000-Property Rent and Rates,CBRE RICHARD ELLIS,1032664,"30,856.38"
Ministry of Justice,Tribunals,11-Jun-10,TR190-Regional North,221000-Property Rent and Rates,LAND SECURITIES PROPERTIES LTD,1032754,"93,194.90"
Ministry of Justice,Tribunals,11-Jun-10,TR190-Regional North,221000-Property Rent and Rates,CBRE RICHARD ELLIS,1032665,"72,096.54"
Ministry of Justice,Tribunals,11-Jun-10,TR190-Regional North,221000-Property Rent and Rates,STANDARD LIFE INVESTMENTS,1032913,"37,746.88"
Ministry of Justice,Tribunals,11-Jun-10,TR190-Regional North,221000-Property Rent and Rates,STANDARD LIFE INVESTMENTS,1032913,"41,712.50"
Ministry of Justice,Tribunals,11-Jun-10,TR190-Regional North,221000-Property Rent and Rates,JONES LANG LASALLE LTD,1032739,"171,937.76"
Ministry of Justice,Tribunals,11-Jun-10,TR200-Regional South,221000-Property Rent and Rates,CITY OF LONDON,1032669,"187,500.00"
Ministry of Justice,Tribunals,11-Jun-10,TR200-Regional South,221000-Property Rent and Rates,CUSHMAN & WAKEFIELD,1032679,"63,624.31"
Ministry of Justice,Tribunals,11-Jun-10,TR200-Regional South,221000-Property Rent and Rates,CUSHMAN & WAKEFIELD,1032679,"63,624.31"
Ministry of Justice,Tribunals,11-Jun-10,TR200-Regional South,221000-Property Rent and Rates,DERWENT LONDON PLC T/A DERWENT LONDON PROPERTY MANAGEMENT,1032683,"577,825.42"
Ministry of Justice,Tribunals,11-Jun-10,TR200-Regional South,221000-Property Rent and Rates,NB REAL ESTATE,1032794,"576,109.55"
Ministry of Justice,Tribunals,11-Jun-10,TR200-Regional South,221000-Property Rent and Rates,PRUDENTIAL PROPERTY INVESTMENT MANAGERS LTD,1032884,"188,146.88"
Ministry of Justice,Tribunals,11-Jun-10,TR200-Regional South,221000-Property Rent and Rates,PRUDENTIAL PROPERTY INVESTMENT MANAGERS LTD,1032884,"109,275.00"
Ministry of Justice,Tribunals,11-Jun-10,TR200-Regional South,221000-Property Rent and Rates,MONTAGU EVANS,1032785,"85,625.00"
Ministry of Justice,Tribunals,11-Jun-10,TR200-Regional South,222002-Other Property Costs,CBRE RICHARD ELLIS,1032663,"47,940.00"
Ministry of Justice,Tribunals,11-Jun-10,TR200-Regional South,221000-Property Rent and Rates,GENERAL PHYSICS (UK) LTD,1032706,"64,717.24"
Ministry of Justice,Tribunals,11-Jun-10,TR190-Regional North,221000-Property Rent and Rates,BRUNTWOOD ESTATES ALPHA PORTFOLIO LTD,1032655,"229,200.95"
Ministry of Justice,Tribunals,11-Jun-10,TR190-Regional North,221000-Property Rent and Rates,JONES LANG LASALLE LTD,1032739,"116,215.14"
Ministry of Justice,Tribunals,11-Jun-10,TR190-Regional North,221000-Property Rent and Rates,LANDA ASSET MANAGEMENT PLC,1032755,"170,239.88"
Ministry of Justice,Tribunals,11-Jun-10,TR200-Regional South,221000-Property Rent and Rates,PHOENIX BEARD,1032874,"214,378.02"
Ministry of Justice,Tribunals,11-Jun-10,TR200-Regional South,222002-Other Property Costs,PHOENIX BEARD,1032875,"84,138.23"
Ministry of Justice,Tribunals,11-Jun-10,TR200-Regional South,221000-Property Rent and Rates,ASHWELL ROGERS LLP,1032635,"272,453.13"
Ministry of Justice,Tribunals,11-Jun-10,TR200-Regional South,221000-Property Rent and Rates,DERWENT LONDON PLC T/A DERWENT LONDON PROPERTY MANAGEMENT,1032683,"104,750.00"
Ministry of Justice,Tribunals,11-Jun-10,TR120-Corporate,212001-Agency staff,KELLY SERVICES (UK) LTD,1032750,"25,037.96"
Ministry of Justice,Tribunals,11-Jun-10,TR120-Corporate,222002-Other Property Costs,MACLELLAN INTERNATIONAL LTD,1032766,"29,857.56"
Ministry of Justice,Tribunals,11-Jun-10,TR120-Corporate,222002-Other Property Costs,REGENT OFFICE CARE LTD,1032891,"29,052.58"
Ministry of Justice,Tribunals,11-Jun-10,TB140-Change Programme,264000-Consultancy,ENLIGHTENED TRAINING (UK) LIMITED,1032697,"45,612.40"
Ministry of Justice,Tribunals,11-Jun-10,TB140-Change Programme,265000-IT & Telecommunications,ATOS ORIGIN IT SERVICES UK LTD,1032636,"25,777.15"
Ministry of Justice,HMCS,14-Jun-10,BZ999-London Region,532000-Tangible GBV - Additions,PARKERAY LTD,1243453,"266,422.74"
Ministry of Justice,MoJ HQ,14-Jun-10,ZZ900-MoJ HQ,223000-Other Expenditure,ARVAL UK LTD,1022123,"28,620.69"
Ministry of Justice,MoJ HQ,14-Jun-10,ZZ900-MoJ HQ,222002-Other Property Costs,CARLISLE SECURITY SERVICES LTD,1022157,"120,523.98"
Ministry of Justice,MoJ HQ,14-Jun-10,ZZ900-MoJ HQ,264000-Consultancy,CABLE & WIRELESS,1022152,"66,975.00"
Ministry of Justice,MoJ HQ,14-Jun-10,ZZ900-MoJ HQ,265000-IT & Telecommunications,ATOS ORIGIN IT SERVICES UK LTD,1022127,"102,430.63"
Ministry of Justice,MoJ HQ,14-Jun-10,ZZ900-MoJ HQ,265000-IT & Telecommunications,ATOS ORIGIN IT SERVICES UK LTD,1022127,"88,830.00"
Ministry of Justice,MoJ HQ,14-Jun-10,ZZ900-MoJ HQ,265000-IT & Telecommunications,ATOS ORIGIN IT SERVICES UK LTD,1022127,"1,752,272.80"
Ministry of Justice,MoJ HQ,14-Jun-10,ZZ900-MoJ HQ,265000-IT & Telecommunications,LOGICA UK LTD,1022266,"44,652.60"
Ministry of Justice,MoJ HQ,14-Jun-10,ZZ900-MoJ HQ,265000-IT & Telecommunications,LOGICA UK LTD,1022266,"62,850.75"
Ministry of Justice,MoJ HQ,14-Jun-10,ZZ900-MoJ HQ,222002-Other Property Costs,CABLE & WIRELESS,1022152,"47,025.85"
Ministry of Justice,MoJ HQ,14-Jun-10,ZZ900-MoJ HQ,222002-Other Property Costs,CABLE & WIRELESS,1022152,"47,025.85"
Ministry of Justice,MoJ HQ,14-Jun-10,ZZ900-MoJ HQ,265000-IT & Telecommunications,ATOS ORIGIN IT SERVICES UK LTD,1022127,"43,083.73"
Ministry of Justice,MoJ HQ,14-Jun-10,ZZ900-MoJ HQ,532000-Tangible GBV - Additions,CABLE & WIRELESS,1022152,"125,807.13"
Ministry of Justice,MoJ HQ,14-Jun-10,ZZ900-MoJ HQ,221000-Property Rent and Rates,BRUNTWOOD ESTATES ALPHA PORTFOLIO LTD,1022148,"27,553.51"
Ministry of Justice,Tribunals,15-Jun-10,TR120-Corporate,223001-Printing Postage and Office expenditure,ROYAL MAIL GROUP PLC,1033636,"155,525.68"
Ministry of Justice,MoJ HQ,15-Jun-10,ZZ900-MoJ HQ,710600-Creditor < 1 year - Payable to Consolidated Fund,HM TREASURY - CFER PAYOVER,1465,"7,968,198.12"
Ministry of Justice,HMCS,16-Jun-10,AR999-HMCS Central Budgets,211000-Judicial Salaries - Salaried,JUDICIAL PENSION SCHEME ACCOUNT#AR10110219,1584,"4,829,966.17"
Ministry of Justice,HMCS,16-Jun-10,AV326-CP Change Management Initiatives,262000-SCA Costs,HP ENTERPRISE SERVICES UK LTD,1246220,"189,512.48"
Ministry of Justice,HMCS,16-Jun-10,BZ999-London Region,610400-Debtors <1 year - Prepayments & Accrued Income,JAMES ANDREW RSW,1246414,"242,622.81"
Ministry of Justice,HMCS,16-Jun-10,BZ999-London Region,610400-Debtors <1 year - Prepayments & Accrued Income,JOHN & SANDRA JOSEPH,1246418,"127,516.87"
Ministry of Justice,HMCS,16-Jun-10,BZ999-London Region,532000-Tangible GBV - Additions,COFELY LTD,1246106,"48,863.43"
Ministry of Justice,HMCS,16-Jun-10,BZ999-London Region,532000-Tangible GBV - Additions,SYKES & SON LTD,1247764,"45,881.40"
Ministry of Justice,HMCS,16-Jun-10,BZ999-London Region,222001-Maintenance,PARAGON MANAGEMENT (UK) LTD,1247561,"28,183.26"
Ministry of Justice,HMCS,16-Jun-10,BZ999-London Region,222001-Maintenance,PARAGON MANAGEMENT (UK) LTD,1247561,"28,791.82"
Ministry of Justice,HMCS,16-Jun-10,CZ999-South East Region,222002-Other Property Costs,HI-SPEC FACILITIES SUPPORT CO PLC,1246355,"253,741.56"
Ministry of Justice,HMCS,16-Jun-10,CZ999-South East Region,610400-Debtors <1 year - Prepayments & Accrued Income,KING STURGE LLP,1246454,"45,453.40"
Ministry of Justice,HMCS,16-Jun-10,CZ999-South East Region,610400-Debtors <1 year - Prepayments & Accrued Income,OSPREY HOUSE (MANAGEMENT) LTD,1247552,"27,528.80"
Ministry of Justice,HMCS,16-Jun-10,CZ999-South East Region,610400-Debtors <1 year - Prepayments & Accrued Income,STANDARD LIFE INVESTMENTS,1247743,"196,547.81"
Ministry of Justice,HMCS,16-Jun-10,CZ999-South East Region,532000-Tangible GBV - Additions,GALLIFORD TRY CONSTRUCTION LTD CENTRAL,1246277,"381,315.08"
Ministry of Justice,HMCS,16-Jun-10,CZ999-South East Region,532000-Tangible GBV - Additions,GALLIFORD TRY CONSTRUCTION LTD CENTRAL,1246277,"368,618.12"
Ministry of Justice,HMCS,16-Jun-10,CZ999-South East Region,265000-IT & Telecommunications,HERTFORDSHIRE COUNTY COUNCIL,1246354,"27,948.56"
Ministry of Justice,HMCS,16-Jun-10,CZ999-South East Region,610400-Debtors <1 year - Prepayments & Accrued Income,HERTFORDSHIRE CONSTABULARY,1246353,"55,695.37"
Ministry of Justice,HMCS,16-Jun-10,CZ999-South East Region,532000-Tangible GBV - Additions,DIRECT DIGITAL CONTROLS LTD,1246170,"43,425.17"
Ministry of Justice,HMCS,16-Jun-10,CZ999-South East Region,610400-Debtors <1 year - Prepayments & Accrued Income,GOOD HARVEST GROUP LTD,127461,"48,269.00"
Ministry of Justice,HMCS,16-Jun-10,CZ999-South East Region,532000-Tangible GBV - Additions,CONTROLLED LTD,1246120,"41,657.22"
Ministry of Justice,HMCS,16-Jun-10,DZ999-South West Region,261000-Fuel and Utilities,BRITISH GAS BUSINESS,1246036,"33,729.12"
Ministry of Justice,HMCS,16-Jun-10,DZ999-South West Region,610400-Debtors <1 year - Prepayments & Accrued Income,LONDONDERRY ADMINISTRATIVE SERVICES,1246494,"36,691.88"
Ministry of Justice,HMCS,16-Jun-10,DZ999-South West Region,610400-Debtors <1 year - Prepayments & Accrued Income,RATCLIFFES,1247615,"91,196.16"
Ministry of Justice,HMCS,16-Jun-10,DZ999-South West Region,610400-Debtors <1 year - Prepayments & Accrued Income,THE EXILARCH'S FOUNDATION,1247784,"146,875.00"
Ministry of Justice,HMCS,16-Jun-10,EZ999-Wales Region,222002-Other Property Costs,MITIE SECURITY LTD,1246559,"192,700.18"
Ministry of Justice,HMCS,16-Jun-10,EZ999-Wales Region,532000-Tangible GBV - Additions,WB GRIFFITHS & SON LTD,1247852,"49,856.00"
Ministry of Justice,HMCS,16-Jun-10,EZ999-Wales Region,532000-Tangible GBV - Additions,HENSTAFF CONSTRUCTION LTD,1246348,"190,466.81"
Ministry of Justice,HMCS,16-Jun-10,FZ999-Midlands Region,263000-Other Contracted Out Services,AVENANCE,1245944,"37,393.40"
Ministry of Justice,HMCS,16-Jun-10,FZ999-Midlands Region,261000-Fuel and Utilities,BRITISH GAS BUSINESS,1246036,"45,933.07"
Ministry of Justice,HMCS,16-Jun-10,FZ999-Midlands Region,222001-Maintenance,EC HARRIS LLP,1246209,"94,536.06"
Ministry of Justice,HMCS,16-Jun-10,FZ999-Midlands Region,222001-Maintenance,EMCOR FACILITIES SERVICES LTD,1246231,"128,237.63"
Ministry of Justice,HMCS,16-Jun-10,FZ999-Midlands Region,610400-Debtors <1 year - Prepayments & Accrued Income,HOWELL BROOKS,1246385,"124,898.69"
Ministry of Justice,HMCS,16-Jun-10,FZ999-Midlands Region,532000-Tangible GBV - Additions,DH FATHERS LTD,1246176,"38,571.37"
Ministry of Justice,HMCS,16-Jun-10,GZ999-North West Region,261000-Fuel and Utilities,BRITISH GAS BUSINESS,1246036,"28,100.64"
Ministry of Justice,HMCS,16-Jun-10,GZ999-North West Region,222001-Maintenance,DTZ DEBENHAM TIE LEUNG,1246199,"66,320.03"
Ministry of Justice,HMCS,16-Jun-10,GZ999-North West Region,610400-Debtors <1 year - Prepayments & Accrued Income,WORKMAN,1247898,"89,747.97"
Ministry of Justice,HMCS,16-Jun-10,GZ999-North West Region,610400-Debtors <1 year - Prepayments & Accrued Income,LONDON & CAPITAL PROPERTIES LTD,1246492,"134,745.92"
Ministry of Justice,HMCS,16-Jun-10,GZ999-North West Region,610400-Debtors <1 year - Prepayments & Accrued Income,LONDON & CAPITAL PROPERTIES LTD,1246492,"135,283.92"
Ministry of Justice,HMCS,16-Jun-10,GZ999-North West Region,610400-Debtors <1 year - Prepayments & Accrued Income,SMITH & SONS,1247718,"25,964.27"
Ministry of Justice,HMCS,16-Jun-10,HZ999-North East and Yorkshire,261000-Fuel and Utilities,BRITISH GAS BUSINESS,1246036,"30,780.37"
Ministry of Justice,HMCS,16-Jun-10,HZ999-North East and Yorkshire,222002-Other Property Costs,MITIE SECURITY LTD,1246559,"419,646.47"
Ministry of Justice,HMCS,16-Jun-10,HZ999-North East and Yorkshire,222002-Other Property Costs,RENTOKIL INITIAL UK LIMITED,1247629,"53,967.64"
Ministry of Justice,HMCS,16-Jun-10,HZ999-North East and Yorkshire,262000-SCA Costs,MODERN COURTS (HUMBERSIDE) LTD,1246561,"405,080.07"
Ministry of Justice,HMCS,16-Jun-10,HZ999-North East and Yorkshire,610400-Debtors <1 year - Prepayments & Accrued Income,MORDEN COLLEGE,1246566,"56,253.13"
Ministry of Justice,HMCS,16-Jun-10,HZ999-North East and Yorkshire,610400-Debtors <1 year - Prepayments & Accrued Income,GVA GRIMLEY LLP,1246319,"61,099.58"
Ministry of Justice,HMCS,16-Jun-10,IZ999-RCJ Group,610400-Debtors <1 year - Prepayments & Accrued Income,BERKLEY ESTATES LONDON LTD,1245992,"1,058,220.24"
Ministry of Justice,HMCS,16-Jun-10,IZ999-RCJ Group,710800-Creditor <1 yr - Third Party Monies,THE OFFICIAL RECEIVER,127743,"115,420.00"
Ministry of Justice,HMCS,16-Jun-10,IZ999-RCJ Group,710800-Creditor <1 yr - Third Party Monies,THE OFFICIAL RECEIVER,127743,"156,000.00"
Ministry of Justice,HMCS,16-Jun-10,IZ999-RCJ Group,223001-Printing Postage and Office expenditure,DX NETWORK SERVICES LTD,1246202,"152,847.65"
Ministry of Justice,HMCS,16-Jun-10,IZ999-RCJ Group,261000-Fuel and Utilities,EDF ENERGY LTD,1246214,"36,470.15"
Ministry of Justice,MoJ HQ,16-Jun-10,ZZ900-MoJ HQ,246000-Current Grants,CRIMINAL CASES REVIEW COMMISSION,6167,"720,000.00"
Ministry of Justice,MoJ HQ,16-Jun-10,ZZ900-MoJ HQ,264000-Consultancy,PORTCULLIS COMPUTER SECURITY LTD,1022551,"54,990.00"
Ministry of Justice,Tribunals,16-Jun-10,TR130-Finance & Resources,211000-Judicial Salaries - Salaried,JUDICIAL PENSIONS SCHEME,1210,"1,344,468.02"
Ministry of Justice,HMCS,17-Jun-10,FZ999-Midlands Region,710800-Creditor <1 yr - Third Party Monies,ONE TIME CAPS,129087,"43,188.11"
Ministry of Justice,HMCS,17-Jun-10,FZ999-Midlands Region,710800-Creditor <1 yr - Third Party Monies,ONE TIME CAPS,129936,"30,403.69"
Ministry of Justice,HMCS,17-Jun-10,FZ999-Midlands Region,710800-Creditor <1 yr - Third Party Monies,ONE TIME CAPS,130584,"26,293.98"
Ministry of Justice,MoJ HQ,17-Jun-10,ZZ900-MoJ HQ,311100-Legal Aid,LEGAL SERVICES COMMISSION,6168,"21,800,000.00"
Ministry of Justice,MoJ HQ,17-Jun-10,ZZ900-MoJ HQ,264000-Consultancy,TRIBAL CONSORTIUM,1022808,"32,077.50"
Ministry of Justice,MoJ HQ,17-Jun-10,ZZ900-MoJ HQ,222001-Maintenance,ASSOCIATED SERVICES (ESSEX) LTD,1022569,"99,931.49"
Ministry of Justice,MoJ HQ,17-Jun-10,ZZ900-MoJ HQ,222002-Other Property Costs,CARLISLE SECURITY SERVICES LTD,1022604,"119,946.12"
Ministry of Justice,MoJ HQ,17-Jun-10,ZZ900-MoJ HQ,532000-Tangible GBV - Additions,M J FERGUSON LTD,1022707,"327,865.67"
Ministry of Justice,MoJ HQ,17-Jun-10,ZZ900-MoJ HQ,532000-Tangible GBV - Additions,M J FERGUSON LTD,1022707,"322,757.88"
Ministry of Justice,MoJ HQ,17-Jun-10,ZZ900-MoJ HQ,532000-Tangible GBV - Additions,M J FERGUSON LTD,1022707,"322,757.88"
Ministry of Justice,MoJ HQ,17-Jun-10,ZZ900-MoJ HQ,265000-IT & Telecommunications,ATOS ORIGIN IT SERVICES UK LTD,1022570,"85,160.48"
Ministry of Justice,MoJ HQ,17-Jun-10,ZZ900-MoJ HQ,212001-Agency staff,CAPGEMINI UK PLC,1022600,"47,000.00"
Ministry of Justice,MoJ HQ,17-Jun-10,ZZ900-MoJ HQ,265000-IT & Telecommunications,ATOS ORIGIN IT SERVICES UK LTD,1022570,"413,034.12"
Ministry of Justice,MoJ HQ,17-Jun-10,ZZ900-MoJ HQ,265000-IT & Telecommunications,CABLE & WIRELESS,1022597,"199,345.02"
Ministry of Justice,MoJ HQ,17-Jun-10,ZZ900-MoJ HQ,265000-IT & Telecommunications,CABLE & WIRELESS,1022597,"199,345.02"
Ministry of Justice,MoJ HQ,17-Jun-10,ZZ900-MoJ HQ,223000-Other Expenditure,SPEAKEASY PRODUCTIONS LTD,1022791,"41,290.21"
Ministry of Justice,HMCS,18-Jun-10,AA499-HMCS Change Programme,265000-IT & Telecommunications,LOGICA UK LTD,1248925,"132,259.18"
Ministry of Justice,HMCS,18-Jun-10,AA499-HMCS Change Programme,265000-IT & Telecommunications,LOGICA UK LTD,1248925,"132,259.18"
Ministry of Justice,HMCS,18-Jun-10,AG999-Estates Directorate HMCS HQ,222001-Maintenance,MICHELMORES SOLICITORS,1248955,"50,078.16"
Ministry of Justice,HMCS,18-Jun-10,AV322-CP Change Management SUPS,532000-Tangible GBV - Additions,ATOS ORIGIN IT SERVICES UK LTD,1248620,"28,825.10"
Ministry of Justice,HMCS,18-Jun-10,AV327-CP E-Working Project,512000-Intangible GBV - Additions,ADOBE SYSTEMS SOFTWARE IRELAND LTD,1248595,"389,997.55"
Ministry of Justice,HMCS,18-Jun-10,AW999-Operations & Performance Dir.,264000-Consultancy,PRICEWATERHOUSECOOPERS SERVICES,1249943,"51,226.48"
Ministry of Justice,HMCS,18-Jun-10,BZ999-London Region,610400-Debtors <1 year - Prepayments & Accrued Income,GREAT CAPITAL PARTNERSHIP (GP) LTD,1248817,"327,531.25"
Ministry of Justice,HMCS,18-Jun-10,BZ999-London Region,610400-Debtors <1 year - Prepayments & Accrued Income,GREAT CAPITAL PARTNERSHIP (GP) LTD,1248817,"198,281.25"
Ministry of Justice,HMCS,18-Jun-10,BZ999-London Region,222001-Maintenance,SYKES & SON LTD,1250042,"56,131.12"
Ministry of Justice,HMCS,18-Jun-10,BZ999-London Region,532000-Tangible GBV - Additions,METSHAPE LTD,1248954,"96,196.17"
Ministry of Justice,HMCS,18-Jun-10,BZ999-London Region,261000-Fuel and Utilities,BRITISH GAS BUSINESS,1248669,"30,162.21"
Ministry of Justice,HMCS,18-Jun-10,BZ999-London Region,265000-IT & Telecommunications,ATOS ORIGIN IT SERVICES UK LTD,1248620,"75,662.95"
Ministry of Justice,HMCS,18-Jun-10,CZ999-South East Region,223001-Printing Postage and Office expenditure,DX NETWORK SERVICES LTD,1248754,"412,055.87"
Ministry of Justice,HMCS,18-Jun-10,CZ999-South East Region,222002-Other Property Costs,MITIE SECURITY LTD,1248961,"566,064.11"
Ministry of Justice,HMCS,18-Jun-10,CZ999-South East Region,222001-Maintenance,BAILEY MAINTENANCE LTD,1248625,"46,117.58"
Ministry of Justice,HMCS,18-Jun-10,CZ999-South East Region,222001-Maintenance,NORLAND MANAGED SERVICES LTD,1248982,"43,745.97"
Ministry of Justice,HMCS,18-Jun-10,CZ999-South East Region,222001-Maintenance,NORLAND MANAGED SERVICES LTD,1248982,"36,856.95"
Ministry of Justice,HMCS,18-Jun-10,DZ999-South West Region,262000-SCA Costs,SERVICES SUPPORT (AVON & SOMERSET) LTD,1249996,"762,681.74"
Ministry of Justice,HMCS,18-Jun-10,EZ999-Wales Region,223001-Printing Postage and Office expenditure,DX NETWORK SERVICES LTD,1248754,"130,840.06"
Ministry of Justice,HMCS,18-Jun-10,EZ999-Wales Region,532000-Tangible GBV - Additions,KIER BUILDING SERVICES ENG,130872,"105,701.86"
Ministry of Justice,HMCS,18-Jun-10,FZ999-Midlands Region,222002-Other Property Costs,REGENT OFFICE CARE LTD,1249962,"258,980.06"
Ministry of Justice,HMCS,18-Jun-10,FZ999-Midlands Region,222002-Other Property Costs,REGENT OFFICE CARE LTD,1249962,"30,150.17"
Ministry of Justice,HMCS,18-Jun-10,FZ999-Midlands Region,222001-Maintenance,EC HARRIS LLP,1248755,"94,536.06"
Ministry of Justice,HMCS,18-Jun-10,FZ999-Midlands Region,532000-Tangible GBV - Additions,BODILL & SONS (CONTRACTORS) LTD,1248657,"88,454.79"
Ministry of Justice,HMCS,18-Jun-10,FZ999-Midlands Region,532000-Tangible GBV - Additions,DSM DEMOLITION LTD,1248749,"120,455.65"
Ministry of Justice,HMCS,18-Jun-10,GZ999-North West Region,610300-Debtors < 1 Year - Deposits & Advances,NEOPOST LTD,1248977,"137,804.00"
Ministry of Justice,HMCS,18-Jun-10,GZ999-North West Region,222002-Other Property Costs,MITIE SECURITY LTD,1248961,"437,518.42"
Ministry of Justice,HMCS,18-Jun-10,GZ999-North West Region,262000-SCA Costs,UK COURT SERVICES LTD,1250070,"183,335.80"
Ministry of Justice,HMCS,18-Jun-10,GZ999-North West Region,262000-SCA Costs,UK COURT SERVICES LTD,1250070,"228,660.08"
Ministry of Justice,HMCS,18-Jun-10,GZ999-North West Region,610400-Debtors <1 year - Prepayments & Accrued Income,CBRE RICHARD ELLIS,1248697,"143,008.83"
Ministry of Justice,HMCS,18-Jun-10,HZ999-North East and Yorkshire,222002-Other Property Costs,RENTOKIL INITIAL UK LIMITED,1249963,"53,967.64"
Ministry of Justice,HMCS,18-Jun-10,HZ999-North East and Yorkshire,532000-Tangible GBV - Additions,HURD ROLLAND PARTNERSHIP,1248864,"63,884.39"
Ministry of Justice,HMCS,18-Jun-10,HZ999-North East and Yorkshire,262000-SCA Costs,PALECASTLE LTD,1249915,"106,368.71"
Ministry of Justice,HMCS,18-Jun-10,IZ999-RCJ Group,262000-SCA Costs,IRON MOUNTAIN UK LTD,1248873,"174,421.84"
Ministry of Justice,Tribunals,18-Jun-10,TR160-Operational Support,266000-Judicial Costs,HAMMICKS LEGAL BOOKSHOPS,15341,"651,837.64"
Ministry of Justice,Tribunals,18-Jun-10,TR160-Operational Support,266000-Judicial Costs,SWEET & MAXWELL LTD,1034378,"159,670.00"
Ministry of Justice,Tribunals,18-Jun-10,TR200-Regional South,222002-Other Property Costs,NB REAL ESTATE,1034320,"41,807.31"
Ministry of Justice,Tribunals,18-Jun-10,TR190-Regional North,221000-Property Rent and Rates,MARDAN NORWICH LTD,15345,"141,000.00"
Ministry of Justice,Tribunals,18-Jun-10,TR120-Corporate,223000-Other Expenditure,EXPOTEL HOTEL RESERVATIONS LTD,1034244,"59,858.16"
Ministry of Justice,Tribunals,18-Jun-10,WW000-Balance Sheet,710100-Creditors < 1 year - Other Taxation & Social Security,HMRC,1211,"264,903.01"
Ministry of Justice,Tribunals,18-Jun-10,WW000-Balance Sheet,710100-Creditors < 1 year - Other Taxation & Social Security,HMRC,1211,"1,326,516.66"
Ministry of Justice,Tribunals,18-Jun-10,WW000-Balance Sheet,710100-Creditors < 1 year - Other Taxation & Social Security,HMRC,1211,"694,593.66"
Ministry of Justice,Tribunals,18-Jun-10,WW000-Balance Sheet,710100-Creditors < 1 year - Other Taxation & Social Security,HMRC,1212,"1,245,588.59"
Ministry of Justice,Tribunals,18-Jun-10,WW000-Balance Sheet,710100-Creditors < 1 year - Other Taxation & Social Security,HMRC,1212,"2,058,259.89"
Ministry of Justice,HMCS,18-Jun-10,WW000-Balance Sheet,710100-Creditors < 1 year - Other Taxation & Social Security,HMRC,1585,"2,493,107.53"
Ministry of Justice,HMCS,18-Jun-10,WW000-Balance Sheet,710100-Creditors < 1 year - Other Taxation & Social Security,HMRC,1585,"2,901,660.93"
Ministry of Justice,HMCS,18-Jun-10,WW000-Balance Sheet,710100-Creditors < 1 year - Other Taxation & Social Security,HMRC,1586,"25,368.19"
Ministry of Justice,HMCS,18-Jun-10,WW000-Balance Sheet,710100-Creditors < 1 year - Other Taxation & Social Security,HMRC,1586,"28,283.18"
Ministry of Justice,HMCS,18-Jun-10,WW000-Balance Sheet,710100-Creditors < 1 year - Other Taxation & Social Security,HMRC,1586,"3,585,742.81"
Ministry of Justice,HMCS,18-Jun-10,WW000-Balance Sheet,710100-Creditors < 1 year - Other Taxation & Social Security,HMRC,1586,"2,560,496.36"
Ministry of Justice,HMCS,18-Jun-10,WW000-Balance Sheet,710100-Creditors < 1 year - Other Taxation & Social Security,HMRC,1587,"446,023.58"
Ministry of Justice,HMCS,18-Jun-10,WW000-Balance Sheet,710100-Creditors < 1 year - Other Taxation & Social Security,HMRC,1587,"722,437.76"
Ministry of Justice,MoJ HQ,18-Jun-10,ZZ900-MoJ HQ,710100-Creditors < 1 year - Other Taxation & Social Security,HMRC,1467,"119,098.49"
Ministry of Justice,MoJ HQ,18-Jun-10,ZZ900-MoJ HQ,710100-Creditors < 1 year - Other Taxation & Social Security,HMRC,1467,"74,999.11"
Ministry of Justice,MoJ HQ,18-Jun-10,ZZ900-MoJ HQ,710100-Creditors < 1 year - Other Taxation & Social Security,HMRC,1468,"1,409,343.34"
Ministry of Justice,MoJ HQ,18-Jun-10,ZZ900-MoJ HQ,710100-Creditors < 1 year - Other Taxation & Social Security,HMRC,1468,"1,800,147.14"
Ministry of Justice,MoJ HQ,18-Jun-10,ZZ900-MoJ HQ,811000-Interdepartmental - MoJHQ,HMRC,1468,"101,102.58"
Ministry of Justice,MoJ HQ,18-Jun-10,ZZ900-MoJ HQ,811000-Interdepartmental - MoJHQ,HMRC,1468,"112,005.32"
Ministry of Justice,MoJ HQ,18-Jun-10,ZZ900-MoJ HQ,631000-Bank,YOUTH JUSTICE BOARD FOR ENGLAND & WALES,1022855,"5,214,349.89"
Ministry of Justice,HMCS,18-Jun-10,WW010-Balance Sheet HMCS,611000-Debtors <1 year - Other Debtors,B T,1248582,"54,704.27"
Ministry of Justice,Tribunals,18-Jun-10,TR120-Corporate,710100-Creditors < 1 year - Other Taxation & Social Security,HMRC,1211,"455,829.72"
Ministry of Justice,HMCS,18-Jun-10,WW030-Balance sheet - FMG,611000-Debtors <1 year - Other Debtors,WORKMAN,1248589,"125,693.48"
Ministry of Justice,HMCS,21-Jun-10,AU999-National Taxing Teams,311200-Criminal Legal Aid,MESSRS ABRAHAM & CO#DX 26678,131089,"26,019.27"
Ministry of Justice,HMCS,21-Jun-10,AU999-National Taxing Teams,311200-Criminal Legal Aid,MESSRS ABV SOLICITORS#DX 44650,131090,"73,525.75"
Ministry of Justice,HMCS,21-Jun-10,AU999-National Taxing Teams,311200-Criminal Legal Aid,MESSRS BARK & CO#DX 447,131100,"44,123.87"
Ministry of Justice,HMCS,21-Jun-10,AU999-National Taxing Teams,226000-Court Costs,MESSRS HORWICH COHEN COGHLAN#M3 3JE,131163,"177,463.63"
Ministry of Justice,HMCS,21-Jun-10,AU999-National Taxing Teams,311200-Criminal Legal Aid,MESSRS I B B SOLICITORS#DX 45105,131166,"39,848.07"
Ministry of Justice,HMCS,21-Jun-10,AU999-National Taxing Teams,226000-Court Costs,MESSRS JONES DAY#DX 67,131173,"1,717,513.37"
Ministry of Justice,HMCS,21-Jun-10,AU999-National Taxing Teams,226000-Court Costs,MESSRS KENNEDYS#DX 766,131181,"100,382.55"
Ministry of Justice,HMCS,21-Jun-10,AU999-National Taxing Teams,226000-Court Costs,MESSRS NORTON ROSE SOLICITORS#DX 85,131203,"1,145,934.49"
Ministry of Justice,HMCS,21-Jun-10,AU999-National Taxing Teams,226000-Court Costs,MESSRS PATTINSON & BREWER#DX 394,131208,"28,085.36"
Ministry of Justice,HMCS,21-Jun-10,AU999-National Taxing Teams,226000-Court Costs,MESSRS S J BERWIN LLP#DX 255,131224,"2,030,630.73"
Ministry of Justice,HMCS,21-Jun-10,AU999-National Taxing Teams,311200-Criminal Legal Aid,FRISBY SOLICITORS LTD T/A FRISBY & CO#DX 14564,1250137,"235,000.00"
Ministry of Justice,HMCS,21-Jun-10,AU999-National Taxing Teams,226000-Court Costs,MESSRS BLACKFORDS LLP#DX 2958,1250169,"42,182.39"
Ministry of Justice,HMCS,21-Jun-10,AU999-National Taxing Teams,226000-Court Costs,MESSRS CHRIS SALTRESE# PR8 6PU,1250180,"134,651.19"
Ministry of Justice,HMCS,21-Jun-10,AU999-National Taxing Teams,311200-Criminal Legal Aid,MESSRS MURRIA#DX 23521,1250229,"46,285.88"
Ministry of Justice,HMCS,21-Jun-10,AU999-National Taxing Teams,226000-Court Costs,MESSRS PANNONE LLP#WC1R 4BF,1250232,"2,675,142.10"
Ministry of Justice,HMCS,21-Jun-10,AU999-National Taxing Teams,311200-Criminal Legal Aid,MESSRS SHEARMAN BOWEN & CO#DX 218,1250251,"68,953.95"
Ministry of Justice,HMCS,21-Jun-10,AU999-National Taxing Teams,311200-Criminal Legal Aid,MESSRS STUART MILLER & CO#DX 35654,1250261,"98,242.58"
Ministry of Justice,HMCS,21-Jun-10,AU999-National Taxing Teams,226000-Court Costs,OLIVER & CO#DX 19977,1250295,"41,008.02"
Ministry of Justice,HMCS,21-Jun-10,AU999-National Taxing Teams,226000-Court Costs,RUSSELL JONES & WALKER#DX202,1250305,"1,527,341.84"
Ministry of Justice,HMCS,21-Jun-10,AU999-National Taxing Teams,226000-Court Costs,RUSSELL JONES & WALKER#DX202,1250305,"32,094.66"
Ministry of Justice,HMCS,21-Jun-10,AU999-National Taxing Teams,226000-Court Costs,MESSRS RICHARD SLADE & ASSOCIATES# DX 141,131220,"31,081.05"
Ministry of Justice,MoJ HQ,21-Jun-10,ZZ900-MoJ HQ,262000-SCA Costs,LIBERATA UK LTD,1022974,"401,170.82"
Ministry of Justice,MoJ HQ,21-Jun-10,ZZ900-MoJ HQ,264000-Consultancy,SERCO LTD,13825,"36,583.10"
Ministry of Justice,MoJ HQ,21-Jun-10,ZZ900-MoJ HQ,264000-Consultancy,ERNST & YOUNG LLP,1022921,"37,976.00"
Ministry of Justice,MoJ HQ,21-Jun-10,ZZ900-MoJ HQ,223000-Other Expenditure,ARVAL UK LTD,1022865,"40,773.37"
Ministry of Justice,MoJ HQ,21-Jun-10,ZZ900-MoJ HQ,261000-Fuel and Utilities,DEPARTMENT FOR BUSINESS INNOVATION & SKILLS (BIS),1022912,"41,112.61"
Ministry of Justice,MoJ HQ,21-Jun-10,ZZ900-MoJ HQ,222001-Maintenance,DTZ DEBENHAM TIE LEUNG,13810,"50,972.55"
Ministry of Justice,MoJ HQ,21-Jun-10,ZZ900-MoJ HQ,222001-Maintenance,M J FERGUSON LTD,1022979,"64,968.10"
Ministry of Justice,MoJ HQ,21-Jun-10,ZZ900-MoJ HQ,222002-Other Property Costs,CALIBRE CONSULTANCY LTD,1022888,"34,687.97"
Ministry of Justice,MoJ HQ,21-Jun-10,ZZ900-MoJ HQ,222002-Other Property Costs,CALIBRE CONSULTANCY LTD,1022888,"39,264.04"
Ministry of Justice,MoJ HQ,21-Jun-10,ZZ900-MoJ HQ,212001-Agency staff,ALPINE RESOURCING LTD,1022858,"45,825.00"
Ministry of Justice,MoJ HQ,21-Jun-10,ZZ900-MoJ HQ,212001-Agency staff,ALPINE RESOURCING LTD,1022858,"27,788.75"
Ministry of Justice,MoJ HQ,21-Jun-10,ZZ900-MoJ HQ,265000-IT & Telecommunications,ATOS ORIGIN IT SERVICES UK LTD,1022867,"453,177.53"
Ministry of Justice,MoJ HQ,21-Jun-10,ZZ900-MoJ HQ,265000-IT & Telecommunications,HOME OFFICE,1022953,"870,190.64"
Ministry of Justice,MoJ HQ,21-Jun-10,ZZ900-MoJ HQ,265000-IT & Telecommunications,PA CONSULTING GROUPS,1023006,"56,400.00"
Ministry of Justice,MoJ HQ,21-Jun-10,ZZ900-MoJ HQ,212001-Agency staff,PARITY RESOURCES LTD,1023009,"26,878.13"
Ministry of Justice,MoJ HQ,21-Jun-10,ZZ900-MoJ HQ,532000-Tangible GBV - Additions,CABLE & WIRELESS,1022887,"199,345.02"
Ministry of Justice,HMCS,22-Jun-10,AU999-National Taxing Teams,226000-Court Costs,MESSRS HUGH JAMES#DX 33000,131958,"114,992.58"
Ministry of Justice,HMCS,22-Jun-10,AU999-National Taxing Teams,311200-Criminal Legal Aid,MESSRS VEJA & CO#DX 51756,131983,"36,888.46"
Ministry of Justice,HMCS,22-Jun-10,AU999-National Taxing Teams,226000-Court Costs,MESSRS RALLI SOLICITORS#DX 14359,1251672,"109,151.97"
Ministry of Justice,MoJ HQ,22-Jun-10,ZZ900-MoJ HQ,246000-Current Grants,WOMEN IN PRISON#RC35111005,1023122,"80,200.00"
Ministry of Justice,Tribunals,22-Jun-10,TR190-Regional North,222002-Other Property Costs,JONES LANG LASALLE LTD,1034660,"47,377.14"
Ministry of Justice,Tribunals,22-Jun-10,TR200-Regional South,221000-Property Rent and Rates,FERNEX LTD,1034638,"161,709.37"
Ministry of Justice,HMCS,23-Jun-10,AU999-National Taxing Teams,226000-Court Costs,CLARKE WILLMOTT,1253716,"49,913.65"
Ministry of Justice,HMCS,23-Jun-10,AV329-CP-Mag. Courts Operational Bus.sys,532000-Tangible GBV - Additions,LOGICA UK LTD,1254066,"62,108.97"
Ministry of Justice,HMCS,23-Jun-10,AV329-CP-Mag. Courts Operational Bus.sys,532000-Tangible GBV - Additions,LOGICA UK LTD,1254066,"166,209.04"
Ministry of Justice,HMCS,23-Jun-10,AV329-CP-Mag. Courts Operational Bus.sys,532000-Tangible GBV - Additions,LOGICA UK LTD,1254066,"89,273.84"
Ministry of Justice,HMCS,23-Jun-10,AV329-CP-Mag. Courts Operational Bus.sys,532000-Tangible GBV - Additions,LOGICA UK LTD,1254066,"147,297.59"
Ministry of Justice,HMCS,23-Jun-10,BZ999-London Region,610400-Debtors <1 year - Prepayments & Accrued Income,CITY OF WESTMINSTER,1251742,"43,556.42"
Ministry of Justice,HMCS,23-Jun-10,BZ999-London Region,610400-Debtors <1 year - Prepayments & Accrued Income,CITY OF WESTMINSTER,1251742,"28,918.46"
Ministry of Justice,HMCS,23-Jun-10,BZ999-London Region,610400-Debtors <1 year - Prepayments & Accrued Income,CITY OF WESTMINSTER,1251742,"44,268.00"
Ministry of Justice,HMCS,23-Jun-10,BZ999-London Region,610400-Debtors <1 year - Prepayments & Accrued Income,CITY OF WESTMINSTER,1251742,"28,825.58"
Ministry of Justice,HMCS,23-Jun-10,BZ999-London Region,610400-Debtors <1 year - Prepayments & Accrued Income,CROYDON COUNCIL,1251757,"65,534.00"
Ministry of Justice,HMCS,23-Jun-10,BZ999-London Region,610400-Debtors <1 year - Prepayments & Accrued Income,CROYDON COUNCIL,1251757,"35,788.39"
Ministry of Justice,HMCS,23-Jun-10,BZ999-London Region,610400-Debtors <1 year - Prepayments & Accrued Income,LONDON BOROUGH OF BRENT,1251824,"37,243.10"
Ministry of Justice,HMCS,23-Jun-10,BZ999-London Region,610400-Debtors <1 year - Prepayments & Accrued Income,LONDON BOROUGH OF BROMLEY,1251825,"32,333.00"
Ministry of Justice,HMCS,23-Jun-10,BZ999-London Region,610400-Debtors <1 year - Prepayments & Accrued Income,LONDON BOROUGH OF GREENWICH,1251829,"63,780.52"
Ministry of Justice,HMCS,23-Jun-10,BZ999-London Region,610400-Debtors <1 year - Prepayments & Accrued Income,LONDON BOROUGH OF HAMMERSMITH & FULHAM,1251830,"43,147.20"
Ministry of Justice,HMCS,23-Jun-10,BZ999-London Region,610400-Debtors <1 year - Prepayments & Accrued Income,LONDON BOROUGH OF HARINGEY,1251831,"51,646.00"
Ministry of Justice,HMCS,23-Jun-10,BZ999-London Region,610400-Debtors <1 year - Prepayments & Accrued Income,LONDON BOROUGH OF HARROW,1251832,"47,107.58"
Ministry of Justice,HMCS,23-Jun-10,BZ999-London Region,610400-Debtors <1 year - Prepayments & Accrued Income,LONDON BOROUGH OF HOUNSLOW,1251834,"60,799.30"
Ministry of Justice,HMCS,23-Jun-10,BZ999-London Region,610400-Debtors <1 year - Prepayments & Accrued Income,LONDON BOROUGH OF ISLINGTON,1251835,"47,306.00"
Ministry of Justice,HMCS,23-Jun-10,BZ999-London Region,610400-Debtors <1 year - Prepayments & Accrued Income,LONDON BOROUGH OF NEWHAM,1251838,"30,380.00"
Ministry of Justice,HMCS,23-Jun-10,BZ999-London Region,610400-Debtors <1 year - Prepayments & Accrued Income,LONDON BOROUGH OF REDBRIDGE,1251839,"43,379.98"
Ministry of Justice,HMCS,23-Jun-10,BZ999-London Region,610400-Debtors <1 year - Prepayments & Accrued Income,LONDON BOROUGH OF SOUTHWARK,1251841,"42,098.00"
Ministry of Justice,HMCS,23-Jun-10,BZ999-London Region,610400-Debtors <1 year - Prepayments & Accrued Income,LONDON BOROUGH OF SOUTHWARK,1251841,"109,142.32"
Ministry of Justice,HMCS,23-Jun-10,BZ999-London Region,610400-Debtors <1 year - Prepayments & Accrued Income,LONDON BOROUGH OF SOUTHWARK,1251841,"81,938.46"
Ministry of Justice,HMCS,23-Jun-10,BZ999-London Region,610400-Debtors <1 year - Prepayments & Accrued Income,LONDON BOROUGH OF SOUTHWARK,1251841,"50,578.68"
Ministry of Justice,HMCS,23-Jun-10,BZ999-London Region,610400-Debtors <1 year - Prepayments & Accrued Income,LONDON BOROUGH OF TOWER HAMLETS,1251843,"40,820.00"
Ministry of Justice,HMCS,23-Jun-10,BZ999-London Region,222002-Other Property Costs,MITIE SECURITY LTD,1254130,"36,509.34"
Ministry of Justice,HMCS,23-Jun-10,BZ999-London Region,222001-Maintenance,MITIE TECHNICAL FACILITIES MANAGEMENT LTD,1254128,"68,725.22"
Ministry of Justice,HMCS,23-Jun-10,BZ999-London Region,222001-Maintenance,MITIE TECHNICAL FACILITIES MANAGEMENT LTD,1254128,"68,725.22"
Ministry of Justice,HMCS,23-Jun-10,BZ999-London Region,610400-Debtors <1 year - Prepayments & Accrued Income,ROYAL BOROUGH OF KINGSTON UPON THAMES,1251896,"87,556.86"
Ministry of Justice,HMCS,23-Jun-10,BZ999-London Region,222001-Maintenance,SYKES & SON LTD,1254931,"54,137.09"
Ministry of Justice,HMCS,23-Jun-10,BZ999-London Region,222002-Other Property Costs,MACLELLAN INTERNATIONAL LTD,1254079,"321,622.45"
Ministry of Justice,HMCS,23-Jun-10,CZ999-South East Region,265000-IT & Telecommunications,BT TELECOMMUNICATIONS PLC,1253671,"57,524.36"
Ministry of Justice,HMCS,23-Jun-10,CZ999-South East Region,222001-Maintenance,MITIE TECHNICAL FACILITIES MANAGEMENT LTD,1254127,"41,321.37"
Ministry of Justice,HMCS,23-Jun-10,CZ999-South East Region,130001-Other Income,MARSTON GROUP,1254097,"94,288.08"
Ministry of Justice,HMCS,23-Jun-10,CZ999-South East Region,610400-Debtors <1 year - Prepayments & Accrued Income,LUTON BOROUGH COUNCIL,1251845,"31,277.58"
Ministry of Justice,HMCS,23-Jun-10,CZ999-South East Region,610400-Debtors <1 year - Prepayments & Accrued Income,BASILDON DISTRICT COUNCIL,1251693,"31,878.00"
Ministry of Justice,HMCS,23-Jun-10,CZ999-South East Region,610400-Debtors <1 year - Prepayments & Accrued Income,CHELMSFORD BOROUGH COUNCIL,1251730,"30,076.72"
Ministry of Justice,HMCS,23-Jun-10,CZ999-South East Region,610400-Debtors <1 year - Prepayments & Accrued Income,CHELMSFORD BOROUGH COUNCIL,1251730,"25,541.46"
Ministry of Justice,HMCS,23-Jun-10,CZ999-South East Region,610400-Debtors <1 year - Prepayments & Accrued Income,ESSEX COUNTY COUNCIL,1253837,"30,887.00"
Ministry of Justice,HMCS,23-Jun-10,CZ999-South East Region,610400-Debtors <1 year - Prepayments & Accrued Income,ST ALBANS CITY & DISTRICT COUNCIL,1251925,"31,050.00"
Ministry of Justice,HMCS,23-Jun-10,CZ999-South East Region,610400-Debtors <1 year - Prepayments & Accrued Income,CANTERBURY CITY COUNCIL,1251724,"36,787.48"
Ministry of Justice,HMCS,23-Jun-10,CZ999-South East Region,610400-Debtors <1 year - Prepayments & Accrued Income,MAIDSTONE BOROUGH COUNCIL,1251846,"57,487.22"
Ministry of Justice,HMCS,23-Jun-10,CZ999-South East Region,610400-Debtors <1 year - Prepayments & Accrued Income,NORWICH CITY COUNCIL,1251877,"27,324.00"
Ministry of Justice,HMCS,23-Jun-10,CZ999-South East Region,532000-Tangible GBV - Additions,VINSTRATA BUILDERS (LONDON) LTD,1254996,"210,926.51"
Ministry of Justice,HMCS,23-Jun-10,CZ999-South East Region,532000-Tangible GBV - Additions,VINSTRATA BUILDERS (LONDON) LTD,1254996,"202,224.06"
Ministry of Justice,HMCS,23-Jun-10,CZ999-South East Region,610400-Debtors <1 year - Prepayments & Accrued Income,CP & CJ BROWN,1253741,"36,718.75"
Ministry of Justice,HMCS,23-Jun-10,CZ999-South East Region,610400-Debtors <1 year - Prepayments & Accrued Income,OXFORD CITY COUNCIL,1251880,"27,354.76"
Ministry of Justice,HMCS,23-Jun-10,CZ999-South East Region,610400-Debtors <1 year - Prepayments & Accrued Income,READING BOROUGH COUNCIL,1251888,"43,982.20"
Ministry of Justice,HMCS,23-Jun-10,DZ999-South West Region,222001-Maintenance,ATKINS,1253594,"115,748.52"
Ministry of Justice,HMCS,23-Jun-10,DZ999-South West Region,222001-Maintenance,MITIE TECHNICAL FACILITIES MANAGEMENT LTD,1254127,"92,875.72"
Ministry of Justice,HMCS,23-Jun-10,DZ999-South West Region,610400-Debtors <1 year - Prepayments & Accrued Income,BRISTOL CITY COUNCIL,1251717,"66,240.00"
Ministry of Justice,HMCS,23-Jun-10,DZ999-South West Region,610400-Debtors <1 year - Prepayments & Accrued Income,BRISTOL CITY COUNCIL,1251717,"45,540.00"
Ministry of Justice,HMCS,23-Jun-10,DZ999-South West Region,610400-Debtors <1 year - Prepayments & Accrued Income,BRISTOL CITY COUNCIL,1253663,"26,400.00"
Ministry of Justice,HMCS,23-Jun-10,DZ999-South West Region,610400-Debtors <1 year - Prepayments & Accrued Income,EXETER CITY COUNCIL,1251787,"41,193.00"
Ministry of Justice,HMCS,23-Jun-10,DZ999-South West Region,610400-Debtors <1 year - Prepayments & Accrued Income,BOURNEMOUTH BOROUGH COUNCIL,1251710,"36,639.00"
Ministry of Justice,HMCS,23-Jun-10,DZ999-South West Region,610400-Debtors <1 year - Prepayments & Accrued Income,PORTSMOUTH CITY COUNCIL,1251884,"40,487.58"
Ministry of Justice,HMCS,23-Jun-10,DZ999-South West Region,610400-Debtors <1 year - Prepayments & Accrued Income,SOUTHAMPTON CITY COUNCIL,1251922,"32,292.00"
Ministry of Justice,HMCS,23-Jun-10,DZ999-South West Region,610400-Debtors <1 year - Prepayments & Accrued Income,SOUTHAMPTON CITY COUNCIL,1251922,"36,035.82"
Ministry of Justice,HMCS,23-Jun-10,DZ999-South West Region,610400-Debtors <1 year - Prepayments & Accrued Income,WINCHESTER CITY COUNCIL,1251964,"32,093.28"
Ministry of Justice,HMCS,23-Jun-10,DZ999-South West Region,610400-Debtors <1 year - Prepayments & Accrued Income,WINCHESTER CITY COUNCIL,1251964,"39,537.00"
Ministry of Justice,HMCS,23-Jun-10,EZ999-Wales Region,261000-Fuel and Utilities,BRITISH GAS BUSINESS,1253664,"38,345.01"
Ministry of Justice,HMCS,23-Jun-10,EZ999-Wales Region,222002-Other Property Costs,OCS SUPPORT SERVICES LTD,1254174,"94,066.51"
Ministry of Justice,HMCS,23-Jun-10,EZ999-Wales Region,222001-Maintenance,WYG MANAGEMENT SERVICES LTD,1255069,"32,936.35"
Ministry of Justice,HMCS,23-Jun-10,EZ999-Wales Region,222001-Maintenance,WYG MANAGEMENT SERVICES LTD,1255069,"35,250.00"
Ministry of Justice,HMCS,23-Jun-10,EZ999-Wales Region,610400-Debtors <1 year - Prepayments & Accrued Income,CARDIFF COUNTY COUNCIL,1251725,"33,333.50"
Ministry of Justice,HMCS,23-Jun-10,EZ999-Wales Region,610400-Debtors <1 year - Prepayments & Accrued Income,NEWPORT CITY COUNCIL,1254156,"32,015.99"
Ministry of Justice,HMCS,23-Jun-10,FZ999-Midlands Region,265000-IT & Telecommunications,CABLE & WIRELESS,1253686,"97,987.95"
Ministry of Justice,HMCS,23-Jun-10,FZ999-Midlands Region,222001-Maintenance,EMCOR FACILITIES SERVICES LTD,1253829,"129,721.46"
Ministry of Justice,HMCS,23-Jun-10,FZ999-Midlands Region,222001-Maintenance,EMCOR FACILITIES SERVICES LTD,1253829,"123,178.92"
Ministry of Justice,HMCS,23-Jun-10,FZ999-Midlands Region,610400-Debtors <1 year - Prepayments & Accrued Income,DERBY CITY COUNCIL,1251764,"26,082.00"
Ministry of Justice,HMCS,23-Jun-10,FZ999-Midlands Region,262000-SCA Costs,DERBYSHIRE COURTS LTD,1253776,"487,680.54"
Ministry of Justice,HMCS,23-Jun-10,FZ999-Midlands Region,610400-Debtors <1 year - Prepayments & Accrued Income,LEICESTER CITY COUNCIL,1251819,"29,601.00"
Ministry of Justice,HMCS,23-Jun-10,FZ999-Midlands Region,222001-Maintenance,DH FATHERS LTD,1253778,"33,479.24"
Ministry of Justice,HMCS,23-Jun-10,FZ999-Midlands Region,610400-Debtors <1 year - Prepayments & Accrued Income,CITY OF LINCOLN COUNCIL,1251739,"177,204.91"
Ministry of Justice,HMCS,23-Jun-10,FZ999-Midlands Region,610400-Debtors <1 year - Prepayments & Accrued Income,NORTHAMPTON BOROUGH COUNCIL,1251875,"35,190.00"
Ministry of Justice,HMCS,23-Jun-10,FZ999-Midlands Region,610400-Debtors <1 year - Prepayments & Accrued Income,NOTTINGHAM CITY COUNCIL,132048,"33,327.00"
Ministry of Justice,HMCS,23-Jun-10,FZ999-Midlands Region,610400-Debtors <1 year - Prepayments & Accrued Income,NOTTINGHAM CITY COUNCIL,132048,"64,170.00"
Ministry of Justice,HMCS,23-Jun-10,FZ999-Midlands Region,610400-Debtors <1 year - Prepayments & Accrued Income,CITY OF STOKE ON TRENT,1251741,"31,709.03"
Ministry of Justice,HMCS,23-Jun-10,FZ999-Midlands Region,610400-Debtors <1 year - Prepayments & Accrued Income,STAFFORD BOROUGH COUNCIL,1251928,"25,826.68"
Ministry of Justice,HMCS,23-Jun-10,FZ999-Midlands Region,610400-Debtors <1 year - Prepayments & Accrued Income,WOLVERHAMPTON CITY COUNCIL,1251966,"35,067.92"
Ministry of Justice,HMCS,23-Jun-10,FZ999-Midlands Region,262000-SCA Costs,H & W COURTS LIMITED,1253914,"545,706.23"
Ministry of Justice,HMCS,23-Jun-10,FZ999-Midlands Region,610400-Debtors <1 year - Prepayments & Accrued Income,BIRMINGHAM CITY COUNCIL,1251698,"27,372.26"
Ministry of Justice,HMCS,23-Jun-10,FZ999-Midlands Region,610400-Debtors <1 year - Prepayments & Accrued Income,BIRMINGHAM CITY COUNCIL,1251698,"128,977.16"
Ministry of Justice,HMCS,23-Jun-10,FZ999-Midlands Region,610400-Debtors <1 year - Prepayments & Accrued Income,BIRMINGHAM CITY COUNCIL,1251698,"42,941.31"
Ministry of Justice,HMCS,23-Jun-10,FZ999-Midlands Region,610400-Debtors <1 year - Prepayments & Accrued Income,COVENTRY CITY COUNCIL,1251754,"27,118.04"
Ministry of Justice,HMCS,23-Jun-10,GZ999-North West Region,263000-Other Contracted Out Services,ARAMARK LTD,1253587,"41,522.14"
Ministry of Justice,HMCS,23-Jun-10,GZ999-North West Region,610400-Debtors <1 year - Prepayments & Accrued Income,MANCHESTER CITY COUNCIL,1251847,"50,094.00"
Ministry of Justice,HMCS,23-Jun-10,GZ999-North West Region,610400-Debtors <1 year - Prepayments & Accrued Income,MANCHESTER CITY COUNCIL,1251847,"49,266.00"
Ministry of Justice,HMCS,23-Jun-10,GZ999-North West Region,610400-Debtors <1 year - Prepayments & Accrued Income,MANCHESTER CITY COUNCIL,1251847,"198,420.48"
Ministry of Justice,HMCS,23-Jun-10,GZ999-North West Region,610400-Debtors <1 year - Prepayments & Accrued Income,PRESTON CITY COUNCIL,1251886,"50,821.70"
Ministry of Justice,HMCS,23-Jun-10,GZ999-North West Region,610400-Debtors <1 year - Prepayments & Accrued Income,LIVERPOOL CITY COUNCIL,1251821,"66,654.00"
Ministry of Justice,HMCS,23-Jun-10,GZ999-North West Region,610400-Debtors <1 year - Prepayments & Accrued Income,LIVERPOOL CITY COUNCIL,1251821,"130,978.18"
Ministry of Justice,HMCS,23-Jun-10,HZ999-North East and Yorkshire,263000-Other Contracted Out Services,ARAMARK LTD,1253587,"27,561.37"
Ministry of Justice,HMCS,23-Jun-10,HZ999-North East and Yorkshire,222001-Maintenance,DTZ DEBENHAM TIE LEUNG,1253799,"58,164.34"
Ministry of Justice,HMCS,23-Jun-10,HZ999-North East and Yorkshire,610400-Debtors <1 year - Prepayments & Accrued Income,MIDDLESBROUGH COUNCIL,1251856,"58,374.00"
Ministry of Justice,HMCS,23-Jun-10,HZ999-North East and Yorkshire,610400-Debtors <1 year - Prepayments & Accrued Income,MIDDLESBROUGH COUNCIL,1251856,"27,338.02"
Ministry of Justice,HMCS,23-Jun-10,HZ999-North East and Yorkshire,610400-Debtors <1 year - Prepayments & Accrued Income,HULL CITY COUNCIL,1251808,"28,773.00"
Ministry of Justice,HMCS,23-Jun-10,HZ999-North East and Yorkshire,610400-Debtors <1 year - Prepayments & Accrued Income,NEWCASTLE UPON TYNE CITY COUNCIL,1251864,"61,272.00"
Ministry of Justice,HMCS,23-Jun-10,HZ999-North East and Yorkshire,610400-Debtors <1 year - Prepayments & Accrued Income,SHEFFIELD CITY COUNCIL,1251907,"69,552.00"
Ministry of Justice,HMCS,23-Jun-10,HZ999-North East and Yorkshire,610400-Debtors <1 year - Prepayments & Accrued Income,SHEFFIELD CITY COUNCIL,1251907,"37,467.00"
Ministry of Justice,HMCS,23-Jun-10,HZ999-North East and Yorkshire,610400-Debtors <1 year - Prepayments & Accrued Income,BRADFORD METROPOLITAN COUNCIL,1251712,"50,922.00"
Ministry of Justice,HMCS,23-Jun-10,HZ999-North East and Yorkshire,610400-Debtors <1 year - Prepayments & Accrued Income,LEEDS CITY COUNCIL,1251818,"46,368.00"
Ministry of Justice,HMCS,23-Jun-10,HZ999-North East and Yorkshire,610400-Debtors <1 year - Prepayments & Accrued Income,LEEDS CITY COUNCIL,1251818,"60,030.00"
Ministry of Justice,HMCS,23-Jun-10,HZ999-North East and Yorkshire,532000-Tangible GBV - Additions,WOOD MITCHELL BUILDING GROUP PLC,1255054,"26,087.26"
Ministry of Justice,HMCS,23-Jun-10,IZ999-RCJ Group,610400-Debtors <1 year - Prepayments & Accrued Income,CITY OF LONDON,1251740,"32,631.00"
Ministry of Justice,HMCS,23-Jun-10,IZ999-RCJ Group,610400-Debtors <1 year - Prepayments & Accrued Income,CITY OF WESTMINSTER,1251742,"295,306.71"
Ministry of Justice,HMCS,23-Jun-10,IZ999-RCJ Group,610400-Debtors <1 year - Prepayments & Accrued Income,JAMES HARE PROPERTIES,1253991,"33,530.98"
Ministry of Justice,HMCS,23-Jun-10,IZ999-RCJ Group,610400-Debtors <1 year - Prepayments & Accrued Income,LEEDS CITY COUNCIL,1251818,"39,951.00"
Ministry of Justice,HMCS,23-Jun-10,IZ999-RCJ Group,610400-Debtors <1 year - Prepayments & Accrued Income,LONDON BOROUGH OF CAMDEN,1251826,"131,896.33"
Ministry of Justice,HMCS,23-Jun-10,IZ999-RCJ Group,311200-Criminal Legal Aid,MR PETER WOODALL#200806364-B5,132402,"27,260.00"
Ministry of Justice,MoJ HQ,23-Jun-10,ZZ900-MoJ HQ,610400-Debtors <1 year - Prepayments & Accrued Income,CITY OF WESTMINSTER,1023143,"92,934.33"
Ministry of Justice,MoJ HQ,23-Jun-10,ZZ900-MoJ HQ,610400-Debtors <1 year - Prepayments & Accrued Income,CITY OF WESTMINSTER,1023143,"56,401.50"
Ministry of Justice,MoJ HQ,23-Jun-10,ZZ900-MoJ HQ,610400-Debtors <1 year - Prepayments & Accrued Income,LONDON BOROUGH OF CAMDEN,1023146,"52,710.98"
Ministry of Justice,MoJ HQ,23-Jun-10,ZZ900-MoJ HQ,610400-Debtors <1 year - Prepayments & Accrued Income,LONDON BOROUGH OF ISLINGTON,1023147,"31,496.47"
Ministry of Justice,MoJ HQ,23-Jun-10,ZZ900-MoJ HQ,610400-Debtors <1 year - Prepayments & Accrued Income,LONDON BOROUGH OF ISLINGTON,1023147,"31,465.00"
Ministry of Justice,MoJ HQ,23-Jun-10,ZZ900-MoJ HQ,610400-Debtors <1 year - Prepayments & Accrued Income,LONDON BOROUGH OF ISLINGTON,1023147,"31,465.00"
Ministry of Justice,MoJ HQ,23-Jun-10,ZZ900-MoJ HQ,610400-Debtors <1 year - Prepayments & Accrued Income,LONDON BOROUGH OF ISLINGTON,1023147,"31,465.00"
Ministry of Justice,Tribunals,23-Jun-10,TR120-Corporate,610400-Debtors <1 year - Prepayments & Accrued Income,CITY OF LONDON,1034768,"54,419.40"
Ministry of Justice,Tribunals,23-Jun-10,TR120-Corporate,610400-Debtors <1 year - Prepayments & Accrued Income,LONDON BOROUGH OF CAMDEN,1034777,"27,779.03"
Ministry of Justice,Tribunals,23-Jun-10,TR120-Corporate,610400-Debtors <1 year - Prepayments & Accrued Income,LONDON BOROUGH OF CAMDEN,1034777,"46,805.26"
Ministry of Justice,Tribunals,23-Jun-10,TR120-Corporate,610400-Debtors <1 year - Prepayments & Accrued Income,LONDON BOROUGH OF ISLINGTON,1034779,"72,590.53"
Ministry of Justice,HMCS,24-Jun-10,FZ999-Midlands Region,710800-Creditor <1 yr - Third Party Monies,ONE TIME CAPS,132792,"25,687.89"
Ministry of Justice,HMCS,24-Jun-10,FZ999-Midlands Region,710800-Creditor <1 yr - Third Party Monies,ONE TIME CAPS,134217,"52,441.73"
Ministry of Justice,HMCS,24-Jun-10,FZ999-Midlands Region,710800-Creditor <1 yr - Third Party Monies,ONE TIME CAPS,135366,"37,657.38"
Ministry of Justice,HMCS,24-Jun-10,FZ999-Midlands Region,710800-Creditor <1 yr - Third Party Monies,ONE TIME CAPS,136033,"26,918.78"
Ministry of Justice,HMCS,24-Jun-10,FZ999-Midlands Region,710800-Creditor <1 yr - Third Party Monies,ONE TIME CAPS,136139,"35,609.71"
Ministry of Justice,HMCS,24-Jun-10,IZ999-RCJ Group,311200-Criminal Legal Aid,HALLINAN BLACKBURN GITTINGS & NOTT#GB37170430,136257,"51,812.50"
Ministry of Justice,HMCS,24-Jun-10,IZ999-RCJ Group,311200-Criminal Legal Aid,NEEDLEMAN TREON#GB37170445,136264,"29,336.26"
Ministry of Justice,MoJ HQ,24-Jun-10,ZZ900-MoJ HQ,532000-Tangible GBV - Additions,CITY OF WESTMINSTER,1023200,"144,000.00"
Ministry of Justice,MoJ HQ,24-Jun-10,ZZ900-MoJ HQ,311100-Legal Aid,LEGAL SERVICES COMMISSION,6169,"20,700,000.00"
Ministry of Justice,MoJ HQ,24-Jun-10,ZZ900-MoJ HQ,212001-Agency staff,CENTRAL OFFICE OF INFORMATION (COI),1023197,"31,878.00"
Ministry of Justice,MoJ HQ,24-Jun-10,ZZ900-MoJ HQ,246000-Current Grants,ADVICE SERVICES ALLIANCE,1023166,"100,000.00"
Ministry of Justice,MoJ HQ,24-Jun-10,ZZ900-MoJ HQ,245000-Grants in Aid to NDPBs,INFORMATION COMMISSIONER (ICO),1023238,"1,500,000.00"
Ministry of Justice,MoJ HQ,24-Jun-10,ZZ900-MoJ HQ,265000-IT & Telecommunications,CENTRAL OFFICE OF INFORMATION (COI),1023197,"34,189.80"
Ministry of Justice,MoJ HQ,24-Jun-10,ZZ900-MoJ HQ,262000-SCA Costs,LIBERATA UK LTD,1023255,"1,280,482.05"
Ministry of Justice,MoJ HQ,24-Jun-10,ZZ900-MoJ HQ,221000-Property Rent and Rates,APIA ASSET MANAGEMENT LTD,1023172,"38,481.25"
Ministry of Justice,MoJ HQ,24-Jun-10,ZZ900-MoJ HQ,221000-Property Rent and Rates,DTZ DEBENHAM TIE LEUNG,13844,"982,000.34"
Ministry of Justice,MoJ HQ,24-Jun-10,ZZ900-MoJ HQ,222002-Other Property Costs,LANCASTER OFFICE CLEANING CO LTD,1023249,"112,974.05"
Ministry of Justice,MoJ HQ,24-Jun-10,ZZ900-MoJ HQ,221000-Property Rent and Rates,LAND SECURITIES PROPERTIES LTD,1023250,"3,138,684.33"
Ministry of Justice,MoJ HQ,24-Jun-10,ZZ900-MoJ HQ,265000-IT & Telecommunications,ATOS ORIGIN IT SERVICES UK LTD,1023175,"450,948.55"
Ministry of Justice,MoJ HQ,24-Jun-10,ZZ900-MoJ HQ,265000-IT & Telecommunications,ATOS ORIGIN IT SERVICES UK LTD,1023175,"104,509.20"
Ministry of Justice,MoJ HQ,24-Jun-10,ZZ900-MoJ HQ,265000-IT & Telecommunications,ATOS ORIGIN IT SERVICES UK LTD,1023175,"68,556.55"
Ministry of Justice,MoJ HQ,24-Jun-10,ZZ900-MoJ HQ,265000-IT & Telecommunications,ATOS ORIGIN IT SERVICES UK LTD,1023175,"740,715.30"
Ministry of Justice,MoJ HQ,24-Jun-10,ZZ900-MoJ HQ,265000-IT & Telecommunications,ATOS ORIGIN IT SERVICES UK LTD,1023175,"1,095,423.13"
Ministry of Justice,MoJ HQ,24-Jun-10,ZZ900-MoJ HQ,265000-IT & Telecommunications,ATOS ORIGIN IT SERVICES UK LTD,1023175,"390,383.18"
Ministry of Justice,MoJ HQ,24-Jun-10,ZZ900-MoJ HQ,265000-IT & Telecommunications,ATOS ORIGIN IT SERVICES UK LTD,1023175,"83,734.07"
Ministry of Justice,MoJ HQ,24-Jun-10,ZZ900-MoJ HQ,265000-IT & Telecommunications,ATOS ORIGIN IT SERVICES UK LTD T/A ATOS HEALTHCARE,1023176,"108,577.66"
Ministry of Justice,MoJ HQ,24-Jun-10,ZZ900-MoJ HQ,265000-IT & Telecommunications,ATOS ORIGIN IT SERVICES UK LTD T/A ATOS HEALTHCARE,1023176,"109,196.10"
Ministry of Justice,MoJ HQ,24-Jun-10,ZZ900-MoJ HQ,265000-IT & Telecommunications,IBM UNITED KINGDOM LTD,1023237,"35,978.23"
Ministry of Justice,MoJ HQ,24-Jun-10,ZZ900-MoJ HQ,265000-IT & Telecommunications,IBM UNITED KINGDOM LTD,1023237,"71,672.52"
Ministry of Justice,MoJ HQ,24-Jun-10,ZZ900-MoJ HQ,212001-Agency staff,ALPINE RESOURCING LTD,1023169,"25,045.36"
Ministry of Justice,MoJ HQ,24-Jun-10,ZZ900-MoJ HQ,265000-IT & Telecommunications,ATOS ORIGIN IT SERVICES UK LTD,1023175,"1,034,774.33"
Ministry of Justice,HMCS,25-Jun-10,AV322-CP Change Management SUPS,532000-Tangible GBV - Additions,ATOS ORIGIN IT SERVICES UK LTD,1256576,"25,478.70"
Ministry of Justice,HMCS,25-Jun-10,AV329-CP-Mag. Courts Operational Bus.sys,532000-Tangible GBV - Additions,LOGICA UK LTD,1256854,"107,191.62"
Ministry of Justice,HMCS,25-Jun-10,AV329-CP-Mag. Courts Operational Bus.sys,532000-Tangible GBV - Additions,LOGICA UK LTD,1256854,"114,405.83"
Ministry of Justice,HMCS,25-Jun-10,AV329-CP-Mag. Courts Operational Bus.sys,532000-Tangible GBV - Additions,LOGICA UK LTD,1256854,"55,433.71"
Ministry of Justice,HMCS,25-Jun-10,AV331-CP Resources,265000-IT & Telecommunications,LOGICA UK LTD,1256854,"99,248.73"
Ministry of Justice,HMCS,25-Jun-10,BZ999-London Region,261000-Fuel and Utilities,CORONA ENERGY,1256669,"55,548.15"
Ministry of Justice,HMCS,25-Jun-10,BZ999-London Region,222002-Other Property Costs,MACLELLAN INTERNATIONAL LTD,1256862,"321,622.45"
Ministry of Justice,HMCS,25-Jun-10,BZ999-London Region,222002-Other Property Costs,MITIE SECURITY LTD,1256897,"752,954.58"
Ministry of Justice,HMCS,25-Jun-10,CZ999-South East Region,261000-Fuel and Utilities,CORONA ENERGY,1256669,"49,857.01"
Ministry of Justice,HMCS,25-Jun-10,CZ999-South East Region,263000-Other Contracted Out Services,EUREST SERVICES,1256717,"34,364.59"
Ministry of Justice,HMCS,25-Jun-10,CZ999-South East Region,223001-Printing Postage and Office expenditure,ROYAL MAIL,1256997,"25,583.48"
Ministry of Justice,HMCS,25-Jun-10,CZ999-South East Region,610400-Debtors <1 year - Prepayments & Accrued Income,I ELLINSON & CO,136712,"163,424.15"
Ministry of Justice,HMCS,25-Jun-10,CZ999-South East Region,610400-Debtors <1 year - Prepayments & Accrued Income,I ELLINSON & CO,136712,"31,448.88"
Ministry of Justice,HMCS,25-Jun-10,DZ999-South West Region,222001-Maintenance,FRAY DESIGN LIMITED,1256733,"129,652.65"
Ministry of Justice,HMCS,25-Jun-10,DZ999-South West Region,222001-Maintenance,NORLAND MANAGED SERVICES LTD,1256921,"37,968.28"
Ministry of Justice,HMCS,25-Jun-10,DZ999-South West Region,261000-Fuel and Utilities,CORONA ENERGY,1256669,"32,891.99"
Ministry of Justice,HMCS,25-Jun-10,EZ999-Wales Region,610400-Debtors <1 year - Prepayments & Accrued Income,CNC PROPERTY MANAGEMENT LTD,1256658,"62,489.58"
Ministry of Justice,HMCS,25-Jun-10,EZ999-Wales Region,532000-Tangible GBV - Additions,WB GRIFFITHS & SON LTD,1257083,"45,594.95"
Ministry of Justice,HMCS,25-Jun-10,FZ999-Midlands Region,222001-Maintenance,MITIE TECHNICAL FACILITIES MANAGEMENT LTD,1256898,"44,831.54"
Ministry of Justice,HMCS,25-Jun-10,FZ999-Midlands Region,222002-Other Property Costs,DERBYSHIRE COUNTY COUNCIL,1256688,"80,184.00"
Ministry of Justice,HMCS,25-Jun-10,GZ999-North West Region,610300-Debtors < 1 Year - Deposits & Advances,NEOPOST LTD,1256915,"125,200.00"
Ministry of Justice,HMCS,25-Jun-10,GZ999-North West Region,261000-Fuel and Utilities,CORONA ENERGY,1256669,"47,256.77"
Ministry of Justice,HMCS,25-Jun-10,HZ999-North East and Yorkshire,261000-Fuel and Utilities,CORONA ENERGY,1256669,"43,388.20"
Ministry of Justice,HMCS,25-Jun-10,HZ999-North East and Yorkshire,532000-Tangible GBV - Additions,JOHN MCASLAN & PARTNERS,1256815,"68,884.38"
Ministry of Justice,HMCS,25-Jun-10,HZ999-North East and Yorkshire,610400-Debtors <1 year - Prepayments & Accrued Income,DEPARTMENT FOR WORK & PENSIONS (DWP),1256687,"75,373.17"
Ministry of Justice,Tribunals,25-Jun-10,TR200-Regional South,221000-Property Rent and Rates,ROSEMOUNT PROPERTIES,1035196,"72,610.30"
Ministry of Justice,Tribunals,25-Jun-10,TR120-Corporate,222002-Other Property Costs,MACLELLAN INTERNATIONAL LTD,1035148,"29,857.56"
Ministry of Justice,Tribunals,25-Jun-10,TR120-Corporate,222002-Other Property Costs,TELEREAL TRILLIUM,1035236,"28,520.38"
Ministry of Justice,Tribunals,25-Jun-10,TB140-Change Programme,265000-IT & Telecommunications,DELL TECHNOLOGY & SOLUTIONS LTD,1035174,"171,711.63"
Ministry of Justice,Tribunals,25-Jun-10,TB140-Change Programme,265000-IT & Telecommunications,DELL TECHNOLOGY & SOLUTIONS LTD,1035174,"236,831.07"
Ministry of Justice,Tribunals,25-Jun-10,TB140-Change Programme,265000-IT & Telecommunications,DELL TECHNOLOGY & SOLUTIONS LTD,1035174,"33,060.00"
Ministry of Justice,HMCS,28-Jun-10,IZ999-RCJ Group,311200-Criminal Legal Aid,MANJIT GILL QC#GB37170455,136909,"47,983.75"
Ministry of Justice,MoJ HQ,28-Jun-10,ZZ900-MoJ HQ,262000-SCA Costs,LIBERATA UK LTD,1023476,"155,071.64"
Ministry of Justice,MoJ HQ,28-Jun-10,ZZ900-MoJ HQ,221000-Property Rent and Rates,CBRE RICHARD ELLIS,1023408,"130,527.45"
Ministry of Justice,MoJ HQ,28-Jun-10,ZZ900-MoJ HQ,221000-Property Rent and Rates,BROOKS PROPERTIES,1023397,"561,650.00"
Ministry of Justice,MoJ HQ,28-Jun-10,ZZ900-MoJ HQ,222002-Other Property Costs,CARLISLE SECURITY SERVICES LTD,1023406,"26,973.78"
Ministry of Justice,MoJ HQ,28-Jun-10,ZZ900-MoJ HQ,221000-Property Rent and Rates,KNIGHT FRANK LLP,1023471,"36,340.25"
Ministry of Justice,MoJ HQ,28-Jun-10,ZZ900-MoJ HQ,222002-Other Property Costs,CARLISLE SECURITY SERVICES LTD,1023406,"30,465.16"
Ministry of Justice,MoJ HQ,28-Jun-10,ZZ900-MoJ HQ,223001-Printing Postage and Office expenditure,DX NETWORK SERVICES LTD,1023427,"44,550.79"
Ministry of Justice,MoJ HQ,28-Jun-10,ZZ900-MoJ HQ,222002-Other Property Costs,INSTITUTE FOR GOVERNMENT,1023462,"38,716.30"
Ministry of Justice,MoJ HQ,28-Jun-10,ZZ900-MoJ HQ,532000-Tangible GBV - Additions,HM PRISON SERVICE,1023453,"275,858.15"
Ministry of Justice,MoJ HQ,28-Jun-10,ZZ900-MoJ HQ,265000-IT & Telecommunications,ATOS ORIGIN IT SERVICES UK LTD,1023382,"34,341.73"
Ministry of Justice,MoJ HQ,28-Jun-10,ZZ900-MoJ HQ,265000-IT & Telecommunications,STERIA LTD,1023542,"229,234.28"
Ministry of Justice,MoJ HQ,28-Jun-10,ZZ900-MoJ HQ,265000-IT & Telecommunications,STERIA LTD,1023542,"229,234.28"
Ministry of Justice,MoJ HQ,28-Jun-10,ZZ900-MoJ HQ,532000-Tangible GBV - Additions,FUJITSU SERVICES LTD,1023436,"26,704.58"
Ministry of Justice,MoJ HQ,28-Jun-10,ZZ900-MoJ HQ,532000-Tangible GBV - Additions,LOGICA UK LTD,1023479,"39,500.60"
Ministry of Justice,MoJ HQ,28-Jun-10,ZZ900-MoJ HQ,532000-Tangible GBV - Additions,LOGICA UK LTD,1023479,"124,109.13"
Ministry of Justice,MoJ HQ,28-Jun-10,ZZ900-MoJ HQ,212001-Agency staff,CAPGEMINI UK PLC,1023404,"38,671.60"
Ministry of Justice,MoJ HQ,28-Jun-10,ZZ900-MoJ HQ,265000-IT & Telecommunications,LOGICA UK LTD,1023479,"26,322.35"
Ministry of Justice,MoJ HQ,28-Jun-10,ZZ900-MoJ HQ,265000-IT & Telecommunications,LOGICA UK LTD,1023479,"40,544.55"
Ministry of Justice,MoJ HQ,28-Jun-10,ZZ900-MoJ HQ,265000-IT & Telecommunications,ATOS ORIGIN IT SERVICES UK LTD,1023382,"32,273.73"
Ministry of Justice,MoJ HQ,29-Jun-10,ZZ900-MoJ HQ,532000-Tangible GBV - Additions,CABLE & WIRELESS,1023574,"84,882.00"
Ministry of Justice,Tribunals,29-Jun-10,TR200-Regional South,222001-Maintenance,TELEREAL TRILLIUM,1035576,"27,302.52"
Ministry of Justice,Tribunals,29-Jun-10,TR200-Regional South,222001-Maintenance,MCDOWALL AIR CONDITIONING (UK) LTD,1035488,"36,856.06"
Ministry of Justice,HMCS,30-Jun-10,AV326-CP Change Management Initiatives,262000-SCA Costs,HP ENTERPRISE SERVICES UK LTD,1259613,"230,182.50"
Ministry of Justice,HMCS,30-Jun-10,AV326-CP Change Management Initiatives,262000-SCA Costs,LIBERATA UK LTD,1259856,"44,452.20"
Ministry of Justice,HMCS,30-Jun-10,AV326-CP Change Management Initiatives,262000-SCA Costs,LIBERATA UK LTD,1259856,"99,072.55"
Ministry of Justice,HMCS,30-Jun-10,AV329-CP-Mag. Courts Operational Bus.sys,265000-IT & Telecommunications,LOGICA UK LTD,1259867,"99,826.57"
Ministry of Justice,HMCS,30-Jun-10,AV329-CP-Mag. Courts Operational Bus.sys,532000-Tangible GBV - Additions,LOGICA UK LTD,1259867,"27,475.67"
Ministry of Justice,HMCS,30-Jun-10,AW999-Operations & Performance Dir.,265000-IT & Telecommunications,O2 (UK) LTD,1259977,"139,005.20"
Ministry of Justice,HMCS,30-Jun-10,BZ999-London Region,222001-Maintenance,COFELY LTD,1259505,"25,831.52"
Ministry of Justice,HMCS,30-Jun-10,BZ999-London Region,222001-Maintenance,MITIE TECHNICAL FACILITIES MANAGEMENT LTD,1259925,"68,725.22"
Ministry of Justice,HMCS,30-Jun-10,BZ999-London Region,222001-Maintenance,NORLAND MANAGED SERVICES LTD,1259963,"107,224.26"
Ministry of Justice,HMCS,30-Jun-10,BZ999-London Region,226000-Court Costs,MERRILL LEGAL SOLUTIONS,1259915,"32,659.98"
Ministry of Justice,HMCS,30-Jun-10,BZ999-London Region,532000-Tangible GBV - Additions,SYKES & SON LTD,1260168,"52,145.25"
Ministry of Justice,HMCS,30-Jun-10,BZ999-London Region,532000-Tangible GBV - Additions,BREYER GROUP PLC,137317,"101,603.85"
Ministry of Justice,HMCS,30-Jun-10,BZ999-London Region,532000-Tangible GBV - Additions,COFELY LTD,1259505,"121,819.86"
Ministry of Justice,HMCS,30-Jun-10,BZ999-London Region,226000-Court Costs,MERRILL LEGAL SOLUTIONS,1259915,"25,797.06"
Ministry of Justice,HMCS,30-Jun-10,CZ999-South East Region,222001-Maintenance,BAILEY MAINTENANCE LTD,1259364,"25,822.07"
Ministry of Justice,HMCS,30-Jun-10,CZ999-South East Region,222001-Maintenance,BAILEY MAINTENANCE LTD,1259364,"29,222.32"
Ministry of Justice,HMCS,30-Jun-10,CZ999-South East Region,532000-Tangible GBV - Additions,VINSTRATA BUILDERS (LONDON) LTD,1260222,"175,424.90"
Ministry of Justice,HMCS,30-Jun-10,CZ999-South East Region,222001-Maintenance,COFELY LTD,1259505,"142,255.55"
Ministry of Justice,HMCS,30-Jun-10,CZ999-South East Region,532000-Tangible GBV - Additions,COFELY LTD,1259505,"64,463.72"
Ministry of Justice,HMCS,30-Jun-10,CZ999-South East Region,222001-Maintenance,MITIE TECHNICAL FACILITIES MANAGEMENT LTD,1259924,"40,600.10"
Ministry of Justice,HMCS,30-Jun-10,DZ999-South West Region,222001-Maintenance,MITIE TECHNICAL FACILITIES MANAGEMENT LTD,1259924,"91,945.72"
Ministry of Justice,HMCS,30-Jun-10,EZ999-Wales Region,532000-Tangible GBV - Additions,ARTHUR HAPGOOD SHOPFITTING,1259351,"60,018.85"
Ministry of Justice,HMCS,30-Jun-10,EZ999-Wales Region,222001-Maintenance,WB GRIFFITHS & SON LTD,1260245,"41,125.00"
Ministry of Justice,HMCS,30-Jun-10,FZ999-Midlands Region,261000-Fuel and Utilities,CORONA ENERGY,1259518,"98,087.40"
Ministry of Justice,HMCS,30-Jun-10,FZ999-Midlands Region,222002-Other Property Costs,MITIE SECURITY LTD,1259926,"37,536.61"
Ministry of Justice,HMCS,30-Jun-10,FZ999-Midlands Region,222001-Maintenance,EVACUSAFE UK LTD,1259625,"42,229.98"
Ministry of Justice,HMCS,30-Jun-10,FZ999-Midlands Region,610400-Debtors <1 year - Prepayments & Accrued Income,WARWICKSHIRE POLICE AUTHORITY,1260240,"26,127.44"
Ministry of Justice,HMCS,30-Jun-10,FZ999-Midlands Region,532000-Tangible GBV - Additions,BDS FIRE & SECURITY LTD,1259386,"48,525.41"
Ministry of Justice,HMCS,30-Jun-10,GZ999-North West Region,130001-Other Income,MARSTON GROUP,1259893,"62,677.56"
Ministry of Justice,HMCS,30-Jun-10,GZ999-North West Region,130001-Other Income,MARSTON GROUP,1259893,"27,031.89"
Ministry of Justice,HMCS,30-Jun-10,GZ999-North West Region,226000-Court Costs,CATER WALSH REPORTING LTD,137319,"65,959.29"
Ministry of Justice,HMCS,30-Jun-10,GZ999-North West Region,222002-Other Property Costs,MITIE SECURITY LTD,1259926,"34,169.28"
Ministry of Justice,HMCS,30-Jun-10,GZ999-North West Region,222001-Maintenance,CARILLION PLANNED MAINTENANCE,1259466,"190,591.07"
Ministry of Justice,HMCS,30-Jun-10,GZ999-North West Region,610400-Debtors <1 year - Prepayments & Accrued Income,OAKLAWN,1259979,"31,512.18"
Ministry of Justice,HMCS,30-Jun-10,HZ999-North East and Yorkshire,265000-IT & Telecommunications,LOGICA UK LTD,1259866,"37,402.60"
Ministry of Justice,HMCS,30-Jun-10,HZ999-North East and Yorkshire,222001-Maintenance,BAILEY MAINTENANCE LTD,1259364,"46,303.32"
Ministry of Justice,HMCS,30-Jun-10,HZ999-North East and Yorkshire,223000-Other Expenditure,HM PRISON SERVICE,1259740,"28,392.85"
Ministry of Justice,HMCS,30-Jun-10,HZ999-North East and Yorkshire,222001-Maintenance,HONEYWELL CONTROL SYSTEMS LTD,1259750,"36,624.02"
Ministry of Justice,HMCS,30-Jun-10,HZ999-North East and Yorkshire,610400-Debtors <1 year - Prepayments & Accrued Income,GVA GRIMLEY LLP,1259708,"35,548.16"
Ministry of Justice,HMCS,30-Jun-10,IZ999-RCJ Group,234000-Profit/Loss on Disposal of Fixed Assets,DEVELOPMENT PLANNING PARTNERSHIP,1259568,"32,312.50"
Ministry of Justice,HMCS,30-Jun-10,IZ999-RCJ Group,532000-Tangible GBV - Additions,VINSTRATA BUILDERS (LONDON) LTD,1260222,"83,090.81"
Ministry of Justice,HMCS,30-Jun-10,IZ999-RCJ Group,223001-Printing Postage and Office expenditure,DX NETWORK SERVICES LTD,1259597,"38,821.98"
Ministry of Justice,HMCS,30-Jun-10,IZ999-RCJ Group,223001-Printing Postage and Office expenditure,DX NETWORK SERVICES LTD,1259597,"30,370.70"
Ministry of Justice,HMCS,30-Jun-10,IZ999-RCJ Group,222001-Maintenance,CARILLION PLANNED MAINTENANCE,1259466,"64,601.79"
Ministry of Justice,MoJ HQ,30-Jun-10,ZZ900-MoJ HQ,246000-Current Grants,OFFICE FOR LEGAL COMPLAINTS,6170,"500,000.00"
Ministry of Justice,MoJ HQ,30-Jun-10,ZZ900-MoJ HQ,246000-Current Grants,OFFICE FOR LEGAL COMPLAINTS,1023653,"1,900,000.00"
Ministry of Justice,MoJ HQ,30-Jun-10,ZZ900-MoJ HQ,223000-Other Expenditure,THE NATIONAL ARCHIVES,1023661,"75,000.00"
